Workbook

Sheet Presentación

Sheet Guía
Q15: FASE 1: ALOJAMIENTO DE ANIMALES Y EVACUACIÓN DEL ESTIÉRCOL
Q17: Jaulas no acondicionadas, SIN SECADO estiércol
Q18: Jaulas no acondicionadas, con SECADO estiércol
Q19: Jaulas no acondicionadas, estiércol evacuado inmediatamente con cinta a almacén cerrado
Q21: Jaulas acondicionadas con cinta y retirada de estiércol 2 veces a la semana
Q23: ulas acondicionadas con cinta, SECADO y retirada de estiércol 2 veces a la semana
Q25: Jaulas acondicionadas con cinta, SECADO y retirada de estiércol más de 2 veces a la semana
Q27: Jaulas con sistemas de depuración de aire
Q28: Cría en suelo con yacija profunda
Q29: Cría en suelo con ventilación natural y sistema de bebederos sin pérdidas de agua, en suelos con yacija profunda
Q30: Sistemas sin jaulas con aviarios con perchas y retirada de estiércol en cinta, sin secado
Q31: Aviarios con perchas y retirada de estiércol en cinta, sin secado
Q33: Aviarios con perchas y retirada de estiércol en cinta, con secado
Q34: Sistemas sin jaulas con yacija, emparrillado parcial y cintas de evacuación
Q35: Cría en suelo con yacija, emparrillado parcial y cintas de evacuación
Q37: Cria en suelo, con yacija con secado forzado
Q38: Adición de sulfato de aluminio a la yacija
Q39: Cría en suelo con sistemas depuración de aire
Q41: FASE 2: ALMACENAMIENTO DEL ESTIÉRCOL
Q42: Almacén abierto, sin cubrir
Q43: Almacén cubierto con materiales rígidos o flexibles
Q45: FASE 3: APLICACIÓN DEL ESTIÉRCOL AL CAMPO
Q46: Esparcido, sin enterrado
I47: A almacenamiento | Q47: Esparcido y enterrado de forma inmediata
I48: Al campo o terreno agrícola | Q48: Incorporación al suelo con discos, de forma inmediata
I49: A otros usos no agrarios | Q49: Enterrado en menos de 4 horas desde el esparcido
Q50: Enterrado en más de 4 horas desde el esparcido

Sheet E.Datos
A1: GANADO AVIAR: AVES DE PUESTA
E4: IDENTIFICACION DE LA EXPLOTACION | L4: Fase 1. Alojamiento de animales y Evacuación del estiércol | X4: Proteína bruta:
L5: Si se aplica un mismo sistema de alojamiento para todos los animales, marcar la misma opción en todas las categorías. En caso contrario, diferenciar por categoría. | X5: Marcar si la proteina bruta que se suministra habitualmente en la ración está o no dentro de los rangos indicados, en unidades de Kg de P.B. por animal y año.
B7: EXPLOTACIÓN | E7: NOMBRE
X8: Aportación de paja, serrín, virutas u otros materiales para cama:
E9: Nº REGISTRO REGA | L9: Fase 2. Almacenamiento del estiércol en la granja
X10: Indicar la cantidad total de estos materiales, expresada en kg, que se utiliza por término medio por plaza y año.
E11: RESPONSABLE | L11: Elegir el sistema empleado, ya sea dentro o fuera de la explotación, diferenciando si procede por categoría animal.
E13: MODULO/NAVE | L13: Fase 3. Aplicación de purines al campo | X13: Destino del estiércol:
E15: AÑO DE CONSTRUCCIÓN | L15: Elegir el sistema empleado en la explotación, diferenciando si procede por categoría animal. | X15: Indicar el destino del estiércol procedente de la explotación: el que se recoge en la nave de alojamiento y el que se saca del almacén de estiércol.
E16: AÑO DE ÚLTIMA REFORMA | L16: Si el estiércol se saca fuera de la explotación, marque el sistema que cree se aplica en el lugar de destino.
E18: LOCALIZACION | L18: De haber varios sistemas, elegir por categoría animal el que corresponda o el más parecido. | X18: En el caso de haber varios destinos posibles, indique el mayoritario.
X19: Sólo si procede, diferenciar por categoría animal.
B22: A N I M A L E S | C22: CATEGORIAS PRODUCTIVAS | E22: NUMERO DE PLAZAS (ocupacion anual) | G22: PROTEINA BRUTA ALIMENTARIA | H22: SÍ / NO | J22: ALOJAMIENTO DE ANIMALES Y EVACUACION DEL ESTIERCOL | L22: APORTACION DE PAJA, SERRIN, VIRUTAS,… | N22: SALIDA A PATIO | R22: DESTINO DEL ESTIERCOL | V22: ALMACENAMIENTO DEL ESTIERCOL | Z22: DESTINO DEL ESTIERCOL TRAS ALMACENAMIENTO | AB22: APLICACIÓN DEL ESTIERCOL AL CAMPO
G23: (% en pienso) | L23: (kg/año) | N23: SÍ | P23: NO | R23: A LA SALIDA DE LA NAVE | T23: A LA SALIDA DEL PATIO
C25: Pollitas blancas en jaula | G25: 18,0-18,1 | H25: SÍ | J25: Cría en suelo con yacija profunda | L25: 0 | R25: A almacenamiento | V25: Almacén abierto, sin cubrir | Z25: Al campo o terreno agrícola | AB25: Esparcido, sin enterrado
C27: Gallinas blancas en jaula - 1er ciclo | G27: 17,8-18,0 | H27: SÍ | J27: Cría en suelo con yacija profunda | L27: 0 | R27: A almacenamiento | V27: Almacén abierto, sin cubrir | Z27: Al campo o terreno agrícola | AB27: Esparcido, sin enterrado
C29: Gallinas blancas en jaula - 1er ciclo (muda) | G29: 18,0-18,2 | H29: SÍ | J29: Cría en suelo con yacija profunda | L29: 0 | R29: A almacenamiento | V29: Almacén abierto, sin cubrir | Z29: Al campo o terreno agrícola | AB29: Esparcido, sin enterrado
C31: Gallinas blancas en jaula - muda | G31: 17,6-17,8 | H31: SÍ | J31: Cría en suelo con yacija profunda | L31: 0 | R31: A almacenamiento | V31: Almacén abierto, sin cubrir | Z31: Al campo o terreno agrícola | AB31: Esparcido, sin enterrado
C33: Gallinas blancas en jaula - 2º ciclo | G33: 17,6-17,8 | H33: SÍ | J33: Cría en suelo con yacija profunda | L33: 0 | R33: A almacenamiento | V33: Almacén abierto, sin cubrir | Z33: Al campo o terreno agrícola | AB33: Esparcido, sin enterrado
C35: Pollitas rubias en jaula | G35: 18,0-18,2 | H35: SÍ | J35: Cría en suelo con yacija profunda | L35: 0 | R35: A almacenamiento | V35: Almacén abierto, sin cubrir | Z35: Al campo o terreno agrícola | AB35: Esparcido, sin enterrado
C37: Gallinas rubias en jaula - 1er ciclo | G37: 17,7-17,9 | H37: SÍ | J37: Cría en suelo con yacija profunda | L37: 0 | R37: A almacenamiento | V37: Almacén abierto, sin cubrir | Z37: Al campo o terreno agrícola | AB37: Esparcido, sin enterrado
C39: Gallinas rubias en jaula - 1er ciclo (muda) | G39: 17,7-17,9 | H39: SÍ | J39: Cría en suelo con yacija profunda | L39: 0 | R39: A almacenamiento | V39: Almacén abierto, sin cubrir | Z39: Al campo o terreno agrícola | AB39: Esparcido, sin enterrado
C41: Gallinas rubias en jaula - muda | G41: 17,3-17,5 | H41: SÍ | J41: Cría en suelo con yacija profunda | L41: 0 | R41: A almacenamiento | V41: Almacén abierto, sin cubrir | Z41: Al campo o terreno agrícola | AB41: Esparcido, sin enterrado
C43: Gallinas rubias en jaula - 2º ciclo | G43: 17,3-17,5 | H43: SÍ | J43: Cría en suelo con yacija profunda | L43: 0 | R43: A almacenamiento | V43: Almacén abierto, sin cubrir | Z43: Al campo o terreno agrícola | AB43: Esparcido, sin enterrado
C45: Pollitas camperas | G45: 17,9-18,1 | H45: SÍ | J45: Cría en suelo con yacija profunda | L45: 0 | P45: NO | R45: A almacenamiento | T45: A almacenamiento | V45: Almacén abierto, sin cubrir | Z45: Al campo o terreno agrícola | AB45: Esparcido, sin enterrado
C47: Gallinas camperas | G47: 16,8-17,0 | H47: SÍ | J47: Cría en suelo con yacija profunda | L47: 0 | P47: NO | R47: A almacenamiento | T47: A almacenamiento | V47: Almacén abierto, sin cubrir | Z47: Al campo o terreno agrícola | AB47: Esparcido, sin enterrado
C49: TOTAL ANIMALES EN GRANJA | E49: =IF(SUM(E25:E47)>0,SUM(E25:E47),"") -> 

Sheet E.Datos2
B2: IDENTIFICACIÓN PROVINCIA
B4: Provincia de ubicación
B6: Persona que realiza la declaración
B7: Nombre y apellidos
B8: Teléfono
B9: Correo electrónico
B11: Observaciones
A18: ANIMALES | B18: REGISTRO DE ANIMALES
B20: AVES DE CORRAL | E20: Nº de Plazas
B21: Gallinas (Bateria con cintas sin presecado)
B22: Gallinas (Bateria con cintas de presecado)
B23: Gallinas (Batería con foso profundo)
D24: Total | E24: =IF(SUM(E21:G23)=0,"",SUM(E21:G23)) -> 

Sheet Metano (hidden)
B2: CÁLCULO SOBRE LAS EMISIÓNES EN AVES DE CORRAL
B4: EMISIÓN DE METANO POR GESTIÓN DE ESTIÉRCOL
B7: Provincia | C7: Factor de Conversión* | E7: Provincia | F7: =E.Datos2!D4 -> 0
B8: Valencia | C8: 0.10344 | E8: Factor de emisión | F8: =IF(F7="Provincia",0,VLOOKUP(F7,$B$8:$C$10,2,0)) -> 
B9: Alicante | C9: 0.10378 | E9: nº de plazas | F9: =E.Datos2!E24 -> 
B10: Castellón de la Plana | C10: 0.09932 | E10: Emisión de CH4 | F10: =F8*F9 -> 
B11: * El factor de conversión para el contaminante CH4. Cambia dependiendo de la provincia de ubicación de la instalación

Sheet RESULTADOS PRTR
B2: EMISIONES A NOTIFICAR EN PRTR-ESPAÑA
B3: Sustancia | C3: kg/año
B4: Amoniaco (NH3) | C4: =IF(Calculos!BK16=0,"",Calculos!BK16) -> 
B5: Óxido nitroso (N2O) | C5: =IF(Calculos!AO16=0,"",Calculos!AO16) -> 
B6: Óxidos de nitrógeno (NOx) | C6: =IF(Calculos!AQ16=0,"",Calculos!AQ16) -> 
B7: Metano (CH4) | C7: =IFERROR(IF(Metano!F10=0,"",Metano!F10),"") -> 
B12: Estas emisiones deben notificarse en la plataforma PRTR- España con:
B14: * Método de otención del dato: "Calculado".
B15: * Origen del método: "SSC".
B16: * Método de cálculo: "Otros". Estimador de emisiones de amoniaco y de nitrógeno en explotaciones avícolas de puesta-MAPA.
B17: * Fuentes o referencias: "Otros". Estimador de emisiones de amoniaco y de nitrógeno en explotaciones avícolas de puesta-MAPA.
B19: En CH4 tanto en método de cálculo como fuentes / referencias debe indicar:
B21: * Cuadro de cálculo de emisiones de gases de sector ganadero en relación con la directiva IPPC.

Sheet Result. N (hidden)
C1: GANADO AVIAR: AVES DE PUESTA
F4: IDENTIFICACION DE LA EXPLOTACION
F5: NOMBRE
F7: Nº REGISTRO REGA
F9: RESPONSABLE
F11: MODULO/NAVE
F13: AÑO DE CONSTRUCCIÓN
F14: AÑO ÚLTIMA REFORMA
F16: LOCALIZACION
D20: RESULTADOS DE EXPLOTACIÓN
E22: Emisiones en NAVE | G22: Emisiones TOTALES de Nitrógeno (kg N / año)
F23: Referencia* | G23: Explotación | L23: Referencia*
E24: N - NH3 | F24: N - NH3 | G24: N - NH3 | H24: N - NOx | I24: N - N2O | J24: N - N2 | K24: N-TOTAL | L24: N
B25: Total granja | E25: =Calculos!AA16 -> 0 | F25: =Calculos!AA40 -> 0 | G25: =Calculos!BF16 -> 0 | H25: =Calculos!BI16 -> 0 | I25: =Calculos!BG16 -> 0 | J25: =Calculos!BH16 -> 0 | K25: =Calculos!BJ16 -> 0 | L25: =Calculos!BJ40 -> 0
B26: Media/plaza*año | E26: =Calculos!AA16/Calculos!C16 ->  | F26: =Calculos!AA40/Calculos!C40 ->  | G26: =G25/Calculos!C16 ->  | H26: =H25/Calculos!C16 ->  | I26: =I25/Calculos!C16 ->  | J26: =J25/Calculos!C16 ->  | K26: =K25/Calculos!C16 ->  | L26: =L25/Calculos!C16 -> 
B27: % N emitido sobre N excretado | E27: =E25*100/G34 ->  | F27: =F25*100/G34 ->  | G27: =G25/G34*100 ->  | H27: =H25/G34*100 ->  | I27: =I25/G34*100 ->  | J27: =J25/G34*100 ->  | K27: =K25*100/G34 ->  | L27: =L25*100/G34 -> 
B28: % N respecto a situación de referencia | E28: =E25*100/F25 ->  | G28: =G25/Calculos!BF40*100 ->  | H28: =H25/Calculos!BI40*100 ->  | I28: =I25/Calculos!BG40*100 ->  | J28: =J25/Calculos!BH40*100 ->  | K28: =K25*100/Calculos!BJ40 -> 
D29: * La situación de referencia corresponden al empleo de las técnicas menos eficientes o más contaminantes.
G31: Nitrógeno excretado | I31: N retenido en estiércol
G32: Explotación | I32: Explotación | K32: Referencia*
G33: (kg N / año) | I33: (kg N / año) | K33: N
D34: Total granja | G34: =Calculos!F16+(Calculos!C16*Calculos!K16*Calculos!AB16) -> 0 | I34: =Calculos!BB16 -> 0 | K34: =Calculos!BB40 -> 0
D35: Media por animal | G35: =G34/Calculos!C16 ->  | I35: =I34/Calculos!C16 ->  | K35: =K34/Calculos!C16 -> 
D36: % N sobre N excretado | G36: =G34/G34*100 ->  | I36: =I34/G34*100 ->  | K36: =K34/G34*100 -> 
D37: * La situación de referencia corresponden al empleo de las técnicas menos eficientes o más contaminantes. | L37: 3

Sheet Calculos (hidden)
A1: SPECIE | B1: CAT_AA | C1: N_AA | D1: N excreted | I1: N Distribution | L1: GRAZING | R1: YARD_solid | X1: BUILD | AB1: STRAW_exBUILD_solid (kgN) | AF1: DISTRIBUTION_exBUILD_solid | AI1: DISTRIBUCION_YARD_solid | AL1: STORE_solid (kg N) | AU1: DISTRIBUCION_STORE_solid | AW1: FIELD_solid | BB1: FIELD TOTAL | BD1: OTHERS | BF1: EE N-NH3 TOTAL | BG1: EE N-N2O | BH1: EE N-N2 | BI1: EE N-NOx | BJ1: EE N-TOTAL | BK1: EE-NH3
D2: Nex_T / AA | E2: Nex_Urine | F2: Nex_T | G2: x_TAN-T | H2: TAN-T | I2: x_GRAZ | J2: x_YARD | K2: x_BUILD | L2: N_GRAZ | M2: TAN_GRAZ | N2: EE_GRAZ | O2: N_ret_GRAZ | P2: TAN_GRAZING_solid | Q2: CHECK-1 | R2: N_YARD_solid | S2: TAN_YARD_solid | T2: EE_YARD_solid | U2: N_ret_YARD | V2: TAN_YARD_solid | W2: CHECK-2 | X2: N_BUILD_solid | Y2: TAN_BUILD_solid | Z2: CHECK-3 | AA2: EE_BUILD_solid | AB2: N_STRAW | AC2: N_exBUILD_solid | AD2: TAN_exBUILD_solid | AE2: CHECK-4 | AF2: x_exBUILD_solid-to-STORE_solid | AG2: x_exBUILD_solid-to-FIELD_solid | AH2: x_exBUILD_solid-to-OTHER | AI2: x_YARD-to-STORE_solid | AJ2: x_YARD-to-FIELD_solid | AK2: x_YARD-to-OTHERS | AL2: N_STORE_solid | AM2: TAN_STORE_solid | AN2: EE_NH3_STORE_solid | AO2: EE_N2O_STORE_solid | AP2: EE_N2_STORE_solid | AQ2: EE_NOx_STORE_solid | AR2: N_ex_STORE_solid | AS2: TAN_ex_STORE_solid | AT2: CHECK-5 | AU2: x_STORE_solid-to-FIELD_solid | AV2: x_STORE_slurry-to-OTHERS | AW2: N_FIELD_solid | AX2: TAN_FIELD_solid | AY2: EE_FIELD_solid | AZ2: N_ex_FIELD_solid | BA2: TAN_ex_FIELD_solid | BB2: N_ex_SFIELD_total | BC2: TAN_ex_FIELD_total | BD2: N_OTHERS_solid | BE2: TAN_total | BF2: (PM=17) | BG2: (PM=44,03) | BH2: (PM=28,01) | BI2: (PM=30,01) | BJ2: kg N | BK2: kg NH3 | BL2: CHECK
C3: nº plazas | D3: kg N/AA | E3: kg N-NH3/AA | F3: kg N | G3: kg N-TAN/AA | H3: kg N-TAN | L3: Kg N | M3: Kg N-NH3 | N3: kg N-NH3 | O3: Kg N | P3: kg N-NH3 | R3: Kg N | S3: Kg N-NH3 | T3: kg N-NH3 | U3: Kg N | V3: kg N-NH3 | X3: Kg N | Y3: kg N-NH3 | AA3: kg N-NH3 | AB3: kg N / AA | AC3: N_ret_BUILD_solid | AD3: TAN_ret_BUILD_solid | AN3: kg N-NH3 | AO3: kg N2O | AP3: kg N2 | AQ3: kg NOx | AR3: N_ret_STORE_solid | AS3: TAN_ret_STORE_solid | AW3: kg N | AX3: kg | AY3: kg N-NH3 | AZ3: N_ret_FIELD_solid | BA3: TAN_ret_FIELD_solid | BB3: N_ret_FIELD_total | BC3: TAN_ret_FIELD_total | BD3: kg N | BE3: kg | BF3: kg N | BG3: kg N | BH3: kg N | BI3: kg N
A4: AVES PUESTA | B4: Pollitas blancas en jaula | C4: =E.Datos!$E$25 -> 0 | D4: 0.283 | E4: 0.228 | F4: =C4*D4 -> 0 | G4: =E4/D4 -> 0.8056537102 | H4: =F4*G4 -> 0 | I4: ='F.Dist.'!$E$4 -> 0 | J4: ='F.Dist.'!$F$4 -> 0 | K4: ='F.Dist.'!$G$4 -> 1 | L4: =F4*I4 -> 0 | M4: =H4*I4 -> 0 | N4: =M4*'F.EE.'!E3 -> 0 | O4: =L4-N4 -> 0 | P4: =M4-N4 -> 0 | Q4: =(I4*H4)-(N4+P4) -> 0 | R4: =F4*J4 -> 0 | S4: =H4*J4 -> 0 | T4: =S4*'F.EE.'!H3 -> 0 | U4: =R4-T4 -> 0 | V4: =S4-T4 -> 0 | W4: =U4+T4+O4+N4-(F4*I4+F4*J4) -> 0 | X4: =F4*K4 -> 0 | Y4: =H4*K4 -> 0 | Z4: =(Y4)-H4*K4 -> 0 | AA4: =Y4*'F.EE.'!K3 -> 0 | AB4: ='F.Dist.'!$J$4 -> 0 | AC4: =(C4*AB4*K4)+X4-AA4 -> 0 | AD4: =(Y4-AA4)*(1-0.0067) -> 0 | AE4: =(AC4+U4+O4)+(N4+T4+AA4)-(F4+AB4*C4*K4) -> 0 | AF4: ='F.Dist.'!K4 -> 1 | AG4: ='F.Dist.'!L4 -> 0 | AH4: ='F.Dist.'!M4 -> 0 | AI4: ='F.Dist.'!O4 -> 0 | AJ4: ='F.Dist.'!P4 -> 0 | AK4: ='F.Dist.'!Q4 -> 0 | AL4: =AC4*AF4+U4*AI4 -> 0 | AM4: =AD4*AF4+V4*AI4 -> 0 | AN4: =AM4*'F.EE.'!N3 -> 0 | AO4: =AM4*'F.EE.'!S3 -> 0 | AP4: =AM4*'F.EE.'!T3 -> 0 | AQ4: =AM4*'F.EE.'!U3 -> 0 | AR4: =AL4-AN4-AO4*(28/44)-AP4-AQ4*(14/46) -> 0 | AS4: =AM4-AN4-AO4*(28/44)-AP4-AQ4*(14/46) -> 0 | AT4: =(AR4+AN4+AP4+AO4*28/44+AQ4*14/46)-AL4 -> 0 | AU4: ='F.Dist.'!S4 -> 1 | AV4: ='F.Dist.'!T4 -> 0 | AW4: =AR4*AU4+AC4*AG4+U4*AJ4 -> 0 | AX4: =AS4*AU4+AD4*AG4+V4*AJ4 -> 0 | AY4: =AX4*'F.EE.'!Q3 -> 0 | AZ4: =AW4-AY4 -> 0 | BA4: =AX4-AY4 -> 0 | BB4: =AZ4+O4 -> 0 | BC4: =BA4+P4 -> 0 | BD4: =U4*AK4+AR4*AV4+AC4*AH4 -> 0 | BE4: =V4*AK4+AS4*AV4+AD4*AH4 -> 0 | BF4: =AY4+AN4+AA4+T4+N4 -> 0 | BG4: =AO4*28/44 -> 0 | BH4: =AP4 -> 0 | BI4: =AQ4*14/46 -> 0 | BJ4: =SUM(BF4:BI4) -> 0 | BK4: =BF4*17/14 -> 0 | BL4: =F4+(AB4*C4*K4)-(BB4+BD4+BJ4) -> 0
A5: AVES PUESTA | B5: Gallinas blancas en jaula - 1er ciclo | C5: =E.Datos!$E$27 -> 0 | D5: 0.573 | E5: 0.44 | F5: 0 | G5: =E5/D5 -> 0.7678883072 | H5: =F5*G5 -> 0 | I5: ='F.Dist.'!$E$5 -> 0 | J5: ='F.Dist.'!$F$5 -> 0 | K5: ='F.Dist.'!$G$5 -> 1 | L5: =F5*I5 -> 0 | M5: =H5*I5 -> 0 | N5: =M5*'F.EE.'!E4 -> 0 | O5: =L5-N5 -> 0 | P5: =M5-N5 -> 0 | Q5: =(I5*H5)-(N5+P5) -> 0 | R5: =F5*J5 -> 0 | S5: =H5*J5 -> 0 | T5: =S5*'F.EE.'!H4 -> 0 | U5: =R5-T5 -> 0 | V5: =S5-T5 -> 0 | W5: =U5+T5+O5+N5-(F5*I5+F5*J5) -> 0 | X5: =F5*K5 -> 0 | Y5: =H5*K5 -> 0 | Z5: =(Y5)-H5*K5 -> 0 | AA5: =Y5*'F.EE.'!K4 -> 0 | AB5: ='F.Dist.'!$J$5 -> 0 | AC5: =(C5*AB5*K5)+X5-AA5 -> 0 | AD5: =(Y5-AA5)*(1-0.0067) -> 0 | AE5: 0 | AF5: ='F.Dist.'!K5 -> 1 | AG5: ='F.Dist.'!L5 -> 0 | AH5: ='F.Dist.'!M5 -> 0 | AI5: ='F.Dist.'!O5 -> 0 | AJ5: ='F.Dist.'!P5 -> 0 | AK5: ='F.Dist.'!Q5 -> 0 | AL5: =AC5*AF5+U5*AI5 -> 0 | AM5: =AD5*AF5+V5*AI5 -> 0 | AN5: =AM5*'F.EE.'!N4 -> 0 | AO5: =AM5*'F.EE.'!S4 -> 0 | AP5: =AM5*'F.EE.'!T4 -> 0 | AQ5: =AM5*'F.EE.'!U4 -> 0 | AR5: =AL5-AN5-AO5*(28/44)-AP5-AQ5*(14/46) -> 0 | AS5: =AM5-AN5-AO5*(28/44)-AP5-AQ5*(14/46) -> 0 | AT5: =(AR5+AN5+AP5+AO5*28/44+AQ5*14/46)-AL5 -> 0 | AU5: ='F.Dist.'!S5 -> 1 | AV5: ='F.Dist.'!T5 -> 0 | AW5: =AR5*AU5+AC5*AG5+U5*AJ5 -> 0 | AX5: =AS5*AU5+AD5*AG5+V5*AJ5 -> 0 | AY5: =AX5*'F.EE.'!Q4 -> 0 | AZ5: =AW5-AY5 -> 0 | BA5: =AX5-AY5 -> 0 | BB5: =AZ5+O5 -> 0 | BC5: =BA5+P5 -> 0 | BD5: =U5*AK5+AR5*AV5+AC5*AH5 -> 0 | BE5: =V5*AK5+AS5*AV5+AD5*AH5 -> 0 | BF5: =AY5+AN5+AA5+T5+N5 -> 0 | BG5: =AO5*28/44 -> 0 | BH5: =AP5 -> 0 | BI5: =AQ5*14/46 -> 0 | BJ5: =SUM(BF5:BI5) -> 0 | BK5: =BF5*17/14 -> 0 | BL5: 0
A6: AVES PUESTA | B6: Gallinas blancas en jaula - 1er ciclo (muda) | C6: =E.Datos!$E$29 -> 0 | D6: 0.57 | E6: 0.431 | F6: 0 | G6: 0.7561403509 | H6: 0 | I6: ='F.Dist.'!E46 -> 0 | J6: ='F.Dist.'!$F$6 -> 0 | K6: ='F.Dist.'!$G$6 -> 1 | L6: 0 | M6: 0 | N6: =M6*'F.EE.'!E5 -> 0 | O6: 0 | P6: 0 | Q6: 0 | R6: 0 | S6: 0 | T6: =S6*'F.EE.'!H5 -> 0 | U6: 0 | V6: 0 | W6: 0 | X6: 0 | Y6: 0 | Z6: 0 | AA6: =Y6*'F.EE.'!K5 -> 0 | AB6: ='F.Dist.'!$J$6 -> 0 | AC6: 0 | AD6: 0 | AE6: 0 | AF6: ='F.Dist.'!K6 -> 1 | AG6: ='F.Dist.'!L6 -> 0 | AH6: ='F.Dist.'!M6 -> 0 | AI6: ='F.Dist.'!O6 -> 0 | AJ6: ='F.Dist.'!P6 -> 0 | AK6: ='F.Dist.'!Q6 -> 0 | AL6: 0 | AM6: 0 | AN6: =AM6*'F.EE.'!N5 -> 0 | AO6: =AM6*'F.EE.'!S5 -> 0 | AP6: =AM6*'F.EE.'!T5 -> 0 | AQ6: =AM6*'F.EE.'!U5 -> 0 | AR6: 0 | AS6: 0 | AT6: 0 | AU6: ='F.Dist.'!S6 -> 1 | AV6: ='F.Dist.'!T6 -> 0 | AW6: 0 | AX6: 0 | AY6: =AX6*'F.EE.'!Q5 -> 0 | AZ6: 0 | BA6: 0 | BB6: 0 | BC6: 0 | BD6: 0 | BE6: 0 | BF6: 0 | BG6: 0 | BH6: 0 | BI6: 0 | BJ6: 0 | BK6: 0 | BL6: 0
A7: AVES PUESTA | B7: Gallinas blancas en jaula - muda | C7: =E.Datos!$E$31 -> 0 | D7: 0.621 | E7: 0.533 | F7: 0 | G7: 0.8582930757 | H7: 0 | I7: ='F.Dist.'!$E$7 -> 0 | J7: ='F.Dist.'!$F$7 -> 0 | K7: ='F.Dist.'!$G$7 -> 1 | L7: 0 | M7: 0 | N7: =M7*'F.EE.'!E6 -> 0 | O7: 0 | P7: 0 | Q7: 0 | R7: =F7*J7 -> 0 | S7: 0 | T7: =S7*'F.EE.'!H6 -> 0 | U7: 0 | V7: 0 | W7: 0 | X7: 0 | Y7: 0 | Z7: 0 | AA7: =Y7*'F.EE.'!K6 -> 0 | AB7: ='F.Dist.'!$J$7 -> 0 | AC7: 0 | AD7: 0 | AE7: 0 | AF7: ='F.Dist.'!K7 -> 1 | AG7: ='F.Dist.'!L7 -> 0 | AH7: ='F.Dist.'!M7 -> 0 | AI7: ='F.Dist.'!O7 -> 0 | AJ7: ='F.Dist.'!P7 -> 0 | AK7: ='F.Dist.'!Q7 -> 0 | AL7: 0 | AM7: 0 | AN7: =AM7*'F.EE.'!N6 -> 0 | AO7: =AM7*'F.EE.'!S6 -> 0 | AP7: =AM7*'F.EE.'!T6 -> 0 | AQ7: =AM7*'F.EE.'!U6 -> 0 | AR7: 0 | AS7: 0 | AT7: 0 | AU7: ='F.Dist.'!S7 -> 1 | AV7: ='F.Dist.'!T7 -> 0 | AW7: 0 | AX7: 0 | AY7: =AX7*'F.EE.'!Q6 -> 0 | AZ7: 0 | BA7: 0 | BB7: 0 | BC7: 0 | BD7: 0 | BE7: 0 | BF7: 0 | BG7: 0 | BH7: 0 | BI7: 0 | BJ7: 0 | BK7: 0 | BL7: 0
A8: AVES PUESTA | B8: Gallinas blancas en jaula - 2º ciclo | C8: =E.Datos!$E$33 -> 0 | D8: 0.602 | E8: 0.462 | F8: 0 | G8: 0.7674418605 | H8: 0 | I8: ='F.Dist.'!$E$8 -> 0 | J8: ='F.Dist.'!$F$8 -> 0 | K8: ='F.Dist.'!$G$8 -> 1 | L8: 0 | M8: 0 | N8: =M8*'F.EE.'!E7 -> 0 | O8: 0 | P8: 0 | Q8: 0 | R8: 0 | S8: 0 | T8: =S8*'F.EE.'!H7 -> 0 | U8: 0 | V8: 0 | W8: 0 | X8: 0 | Y8: 0 | Z8: 0 | AA8: =Y8*'F.EE.'!K7 -> 0 | AB8: ='F.Dist.'!$J$8 -> 0 | AC8: 0 | AD8: 0 | AE8: 0 | AF8: ='F.Dist.'!K8 -> 1 | AG8: ='F.Dist.'!L8 -> 0 | AH8: ='F.Dist.'!M8 -> 0 | AI8: ='F.Dist.'!O8 -> 0 | AJ8: ='F.Dist.'!P8 -> 0 | AK8: ='F.Dist.'!Q8 -> 0 | AL8: 0 | AM8: 0 | AN8: =AM8*'F.EE.'!N7 -> 0 | AO8: =AM8*'F.EE.'!S7 -> 0 | AP8: =AM8*'F.EE.'!T7 -> 0 | AQ8: =AM8*'F.EE.'!U7 -> 0 | AR8: 0 | AS8: 0 | AT8: 0 | AU8: ='F.Dist.'!S8 -> 1 | AV8: ='F.Dist.'!T8 -> 0 | AW8: 0 | AX8: 0 | AY8: =AX8*'F.EE.'!Q7 -> 0 | AZ8: 0 | BA8: 0 | BB8: 0 | BC8: 0 | BD8: 0 | BE8: 0 | BF8: =AY8+AN8+AA8+T8+N8 -> 0 | BG8: 0 | BH8: 0 | BI8: 0 | BJ8: 0 | BK8: 0 | BL8: 0
A9: AVES PUESTA | B9: Pollitas rubias en jaula | C9: =E.Datos!$E$35 -> 0 | D9: 0.31 | E9: 0.249 | F9: 0 | G9: 0.8032258065 | H9: 0 | I9: ='F.Dist.'!$E$9 -> 0 | J9: ='F.Dist.'!$F$9 -> 0 | K9: ='F.Dist.'!$G$9 -> 1 | L9: 0 | M9: 0 | N9: =M9*'F.EE.'!E8 -> 0 | O9: 0 | P9: 0 | Q9: 0 | R9: 0 | S9: 0 | T9: =S9*'F.EE.'!H8 -> 0 | U9: 0 | V9: 0 | W9: 0 | X9: 0 | Y9: 0 | Z9: 0 | AA9: =Y9*'F.EE.'!K8 -> 0 | AB9: ='F.Dist.'!$J$9 -> 0 | AC9: 0 | AD9: 0 | AE9: 0 | AF9: ='F.Dist.'!K9 -> 1 | AG9: ='F.Dist.'!L9 -> 0 | AH9: ='F.Dist.'!M9 -> 0 | AI9: ='F.Dist.'!O9 -> 0 | AJ9: ='F.Dist.'!P9 -> 0 | AK9: ='F.Dist.'!Q9 -> 0 | AL9: 0 | AM9: 0 | AN9: =AM9*'F.EE.'!N8 -> 0 | AO9: =AM9*'F.EE.'!S8 -> 0 | AP9: =AM9*'F.EE.'!T8 -> 0 | AQ9: =AM9*'F.EE.'!U8 -> 0 | AR9: 0 | AS9: 0 | AT9: 0 | AU9: ='F.Dist.'!S9 -> 1 | AV9: ='F.Dist.'!T9 -> 0 | AW9: 0 | AX9: 0 | AY9: =AX9*'F.EE.'!Q8 -> 0 | AZ9: 0 | BA9: 0 | BB9: 0 | BC9: 0 | BD9: 0 | BE9: 0 | BF9: 0 | BG9: 0 | BH9: 0 | BI9: 0 | BJ9: 0 | BK9: 0 | BL9: 0
A10: AVES PUESTA | B10: Gallinas rubias en jaula - 1er ciclo | C10: =E.Datos!$E$37 -> 0 | D10: 0.641 | E10: 0.494 | F10: 0 | G10: 0.7706708268 | H10: 0 | I10: ='F.Dist.'!$E$10 -> 0 | J10: ='F.Dist.'!$F$10 -> 0 | K10: ='F.Dist.'!$G$10 -> 1 | L10: 0 | M10: 0 | N10: =M10*'F.EE.'!E9 -> 0 | O10: 0 | P10: 0 | Q10: 0 | R10: 0 | S10: 0 | T10: =S10*'F.EE.'!H9 -> 0 | U10: 0 | V10: 0 | W10: 0 | X10: 0 | Y10: 0 | Z10: 0 | AA10: =Y10*'F.EE.'!K9 -> 0 | AB10: ='F.Dist.'!$J$10 -> 0 | AC10: 0 | AD10: 0 | AE10: 0 | AF10: ='F.Dist.'!K10 -> 1 | AG10: ='F.Dist.'!L10 -> 0 | AH10: ='F.Dist.'!M10 -> 0 | AI10: ='F.Dist.'!O10 -> 0 | AJ10: ='F.Dist.'!P10 -> 0 | AK10: ='F.Dist.'!Q10 -> 0 | AL10: 0 | AM10: 0 | AN10: =AM10*'F.EE.'!N9 -> 0 | AO10: =AM10*'F.EE.'!S9 -> 0 | AP10: =AM10*'F.EE.'!T9 -> 0 | AQ10: =AM10*'F.EE.'!U9 -> 0 | AR10: 0 | AS10: 0 | AT10: 0 | AU10: ='F.Dist.'!S10 -> 1 | AV10: ='F.Dist.'!T10 -> 0 | AW10: 0 | AX10: 0 | AY10: =AX10*'F.EE.'!Q9 -> 0 | AZ10: 0 | BA10: 0 | BB10: 0 | BC10: 0 | BD10: 0 | BE10: 0 | BF10: 0 | BG10: 0 | BH10: 0 | BI10: 0 | BJ10: 0 | BK10: 0 | BL10: 0
A11: AVES PUESTA | B11: Gallinas rubias en jaula - 1er ciclo (muda) | C11: =E.Datos!$E$39 -> 0 | D11: 0.615 | E11: 0.47 | F11: 0 | G11: =E11/D11 -> 0.7642276423 | H11: 0 | I11: ='F.Dist.'!$E$11 -> 0 | J11: ='F.Dist.'!$F$11 -> 0 | K11: ='F.Dist.'!$G$11 -> 1 | L11: 0 | M11: 0 | N11: =M11*'F.EE.'!E10 -> 0 | O11: 0 | P11: 0 | Q11: 0 | R11: 0 | S11: 0 | T11: =S11*'F.EE.'!H10 -> 0 | U11: 0 | V11: 0 | W11: 0 | X11: 0 | Y11: 0 | Z11: 0 | AA11: =Y11*'F.EE.'!K10 -> 0 | AB11: ='F.Dist.'!$J$11 -> 0 | AC11: 0 | AD11: 0 | AE11: 0 | AF11: ='F.Dist.'!K11 -> 1 | AG11: ='F.Dist.'!L11 -> 0 | AH11: ='F.Dist.'!M11 -> 0 | AI11: ='F.Dist.'!O11 -> 0 | AJ11: ='F.Dist.'!P11 -> 0 | AK11: ='F.Dist.'!Q11 -> 0 | AL11: 0 | AM11: 0 | AN11: =AM11*'F.EE.'!N10 -> 0 | AO11: =AM11*'F.EE.'!S10 -> 0 | AP11: =AM11*'F.EE.'!T10 -> 0 | AQ11: =AM11*'F.EE.'!U10 -> 0 | AR11: 0 | AS11: 0 | AT11: 0 | AU11: ='F.Dist.'!S11 -> 1 | AV11: ='F.Dist.'!T11 -> 0 | AW11: 0 | AX11: 0 | AY11: =AX11*'F.EE.'!Q10 -> 0 | AZ11: 0 | BA11: 0 | BB11: 0 | BC11: 0 | BD11: 0 | BE11: 0 | BF11: 0 | BG11: 0 | BH11: 0 | BI11: 0 | BJ11: 0 | BK11: 0 | BL11: 0
A12: AVES PUESTA | B12: Gallinas rubias en jaula - muda | C12: =E.Datos!$E$41 -> 0 | D12: 0.663 | E12: 0.568 | F12: 0 | G12: 0.8567119155 | H12: =F12*G12 -> 0 | I12: ='F.Dist.'!$E$12 -> 0 | J12: ='F.Dist.'!$F$12 -> 0 | K12: ='F.Dist.'!$G$12 -> 1 | L12: 0 | M12: 0 | N12: =M12*'F.EE.'!E11 -> 0 | O12: 0 | P12: 0 | Q12: 0 | R12: 0 | S12: 0 | T12: =S12*'F.EE.'!H11 -> 0 | U12: 0 | V12: 0 | W12: 0 | X12: 0 | Y12: 0 | Z12: 0 | AA12: =Y12*'F.EE.'!K11 -> 0 | AB12: ='F.Dist.'!$J$12 -> 0 | AC12: 0 | AD12: 0 | AE12: 0 | AF12: ='F.Dist.'!K12 -> 1 | AG12: ='F.Dist.'!L12 -> 0 | AH12: ='F.Dist.'!M12 -> 0 | AI12: ='F.Dist.'!O12 -> 0 | AJ12: ='F.Dist.'!P12 -> 0 | AK12: ='F.Dist.'!Q12 -> 0 | AL12: 0 | AM12: 0 | AN12: =AM12*'F.EE.'!N11 -> 0 | AO12: =AM12*'F.EE.'!S11 -> 0 | AP12: =AM12*'F.EE.'!T11 -> 0 | AQ12: =AM12*'F.EE.'!U11 -> 0 | AR12: 0 | AS12: 0 | AT12: 0 | AU12: ='F.Dist.'!S12 -> 1 | AV12: ='F.Dist.'!T12 -> 0 | AW12: 0 | AX12: 0 | AY12: =AX12*'F.EE.'!Q11 -> 0 | AZ12: 0 | BA12: 0 | BB12: 0 | BC12: 0 | BD12: 0 | BE12: 0 | BF12: 0 | BG12: 0 | BH12: 0 | BI12: 0 | BJ12: 0 | BK12: 0 | BL12: 0
A13: AVES PUESTA | B13: Gallinas rubias en jaula - 2º ciclo | C13: =E.Datos!$E$43 -> 0 | D13: 0.666 | E13: 0.516 | F13: 0 | G13: 0.7747747748 | H13: 0 | I13: ='F.Dist.'!$E$13 -> 0 | J13: ='F.Dist.'!$F$13 -> 0 | K13: ='F.Dist.'!$G$13 -> 1 | L13: 0 | M13: 0 | N13: =M13*'F.EE.'!E12 -> 0 | O13: 0 | P13: 0 | Q13: 0 | R13: 0 | S13: 0 | T13: =S13*'F.EE.'!H12 -> 0 | U13: 0 | V13: 0 | W13: 0 | X13: 0 | Y13: 0 | Z13: 0 | AA13: =Y13*'F.EE.'!K12 -> 0 | AB13: ='F.Dist.'!$J$13 -> 0 | AC13: 0 | AD13: 0 | AE13: 0 | AF13: ='F.Dist.'!K13 -> 1 | AG13: ='F.Dist.'!L13 -> 0 | AH13: ='F.Dist.'!M13 -> 0 | AI13: ='F.Dist.'!O13 -> 0 | AJ13: ='F.Dist.'!P13 -> 0 | AK13: ='F.Dist.'!Q13 -> 0 | AL13: 0 | AM13: 0 | AN13: =AM13*'F.EE.'!N12 -> 0 | AO13: =AM13*'F.EE.'!S12 -> 0 | AP13: =AM13*'F.EE.'!T12 -> 0 | AQ13: =AM13*'F.EE.'!U12 -> 0 | AR13: 0 | AS13: 0 | AT13: 0 | AU13: ='F.Dist.'!S13 -> 1 | AV13: ='F.Dist.'!T13 -> 0 | AW13: 0 | AX13: 0 | AY13: =AX13*'F.EE.'!Q12 -> 0 | AZ13: 0 | BA13: 0 | BB13: 0 | BC13: 0 | BD13: 0 | BE13: 0 | BF13: 0 | BG13: 0 | BH13: 0 | BI13: 0 | BJ13: 0 | BK13: 0 | BL13: 0
A14: AVES PUESTA | B14: Pollitas camperas | C14: =E.Datos!$E$45 -> 0 | D14: 0.346 | E14: 0.279 | F14: 0 | G14: 0.8063583815 | H14: 0 | I14: ='F.Dist.'!$E$14 -> 0 | J14: ='F.Dist.'!$F$14 -> 0 | K14: ='F.Dist.'!$G$14 -> 1 | L14: 0 | M14: 0 | N14: =M14*'F.EE.'!E13 -> 0 | O14: 0 | P14: 0 | Q14: 0 | R14: 0 | S14: 0 | T14: =S14*'F.EE.'!H13 -> 0 | U14: 0 | V14: 0 | W14: 0 | X14: 0 | Y14: 0 | Z14: 0 | AA14: =Y14*'F.EE.'!K13 -> 0 | AB14: ='F.Dist.'!$J$14 -> 0 | AC14: 0 | AD14: 0 | AE14: 0 | AF14: ='F.Dist.'!K14 -> 1 | AG14: ='F.Dist.'!L14 -> 0 | AH14: ='F.Dist.'!M14 -> 0 | AI14: ='F.Dist.'!O14 -> 1 | AJ14: ='F.Dist.'!P14 -> 0 | AK14: ='F.Dist.'!Q14 -> 0 | AL14: 0 | AM14: 0 | AN14: =AM14*'F.EE.'!N13 -> 0 | AO14: =AM14*'F.EE.'!S13 -> 0 | AP14: =AM14*'F.EE.'!T13 -> 0 | AQ14: =AM14*'F.EE.'!U13 -> 0 | AR14: 0 | AS14: 0 | AT14: 0 | AU14: ='F.Dist.'!S14 -> 1 | AV14: ='F.Dist.'!T14 -> 0 | AW14: 0 | AX14: 0 | AY14: =AX14*'F.EE.'!Q13 -> 0 | AZ14: 0 | BA14: 0 | BB14: 0 | BC14: 0 | BD14: 0 | BE14: 0 | BF14: 0 | BG14: 0 | BH14: 0 | BI14: 0 | BJ14: 0 | BK14: 0 | BL14: 0
A15: AVES PUESTA | B15: Gallinas camperas | C15: =E.Datos!$E$47 -> 0 | D15: 0.643 | E15: 0.495 | F15: 0 | G15: 0.7698289269 | H15: 0 | I15: ='F.Dist.'!$E$15 -> 0 | J15: ='F.Dist.'!$F$15 -> 0 | K15: ='F.Dist.'!$G$15 -> 1 | L15: 0 | M15: 0 | N15: =M15*'F.EE.'!E14 -> 0 | O15: 0 | P15: 0 | Q15: 0 | R15: 0 | S15: 0 | T15: =S15*'F.EE.'!H14 -> 0 | U15: 0 | V15: 0 | W15: 0 | X15: 0 | Y15: 0 | Z15: 0 | AA15: =Y15*'F.EE.'!K14 -> 0 | AB15: ='F.Dist.'!$J$15 -> 0 | AC15: 0 | AD15: =(Y15-AA15)*(1-0.0067) -> 0 | AE15: 0 | AF15: ='F.Dist.'!K15 -> 1 | AG15: ='F.Dist.'!L15 -> 0 | AH15: ='F.Dist.'!M15 -> 0 | AI15: ='F.Dist.'!O15 -> 1 | AJ15: ='F.Dist.'!P15 -> 0 | AK15: ='F.Dist.'!Q15 -> 0 | AL15: =AC15*AF15+U15*AI15 -> 0 | AM15: =AD15*AF15+V15*AI15 -> 0 | AN15: =AM15*'F.EE.'!N14 -> 0 | AO15: =AM15*'F.EE.'!S14 -> 0 | AP15: =AM15*'F.EE.'!T14 -> 0 | AQ15: =AM15*'F.EE.'!U14 -> 0 | AR15: 0 | AS15: 0 | AT15: 0 | AU15: ='F.Dist.'!S15 -> 1 | AV15: ='F.Dist.'!T15 -> 0 | AW15: 0 | AX15: 0 | AY15: =AX15*'F.EE.'!Q14 -> 0 | AZ15: 0 | BA15: 0 | BB15: 0 | BC15: 0 | BD15: 0 | BE15: 0 | BF15: 0 | BG15: 0 | BH15: 0 | BI15: 0 | BJ15: 0 | BK15: 0 | BL15: 0
A16: TOTALS | C16: =SUM(C4:C15) -> 0 | F16: =SUM(F4:F15) -> 0 | H16: =SUM(H4:H15) -> 0 | K16: =K15 -> 1 | L16: =SUM(L4:L15) -> 0 | M16: =SUM(M4:M15) -> 0 | N16: =SUM(N4:N15) -> 0 | O16: =SUM(O4:O15) -> 0 | P16: =SUM(P4:P15) -> 0 | R16: =SUM(R4:R15) -> 0 | S16: =SUM(S4:S15) -> 0 | T16: =SUM(T4:T15) -> 0 | U16: =SUM(U4:U15) -> 0 | V16: =SUM(V4:V15) -> 0 | X16: =SUM(X4:X15) -> 0 | Y16: =SUM(Y4:Y15) -> 0 | AA16: =SUM(AA4:AA15) -> 0 | AC16: =SUM(AC4:AC15) -> 0 | AD16: =SUM(AD4:AD15) -> 0 | AL16: =SUM(AL4:AL15) -> 0 | AM16: 0 | AN16: 0 | AO16: 0 | AP16: 0 | AQ16: 0 | AR16: 0 | AS16: 0 | AT16: =SUM(AT4:AT15) -> 0 | AW16: =SUM(AW4:AW15) -> 0 | AX16: 0 | AY16: 0 | AZ16: 0 | BA16: 0 | BB16: 0 | BC16: 0 | BD16: 0 | BE16: 0 | BF16: 0 | BG16: 0 | BH16: 0 | BI16: 0 | BJ16: =SUM(BF16:BI16) -> 0 | BK16: =BF16*17/14 -> 0 | BL16: =SUM(BL4:BL15) -> 0
A25: SPECIE | B25: CAT_AA | C25: N_AA | D25: N excreted | I25: N Distribution | L25: GRAZING | R25: YARD_solid | X25: BUILD | AB25: STRAW_exBUILD_solid (kgN) | AF25: DISTRIBUTION_exBUILD_solid | AI25: DISTRIBUCION_YARD_solid | AL25: STORE_solid (kg N) | AU25: DISTRIBUCION_STORE_solid | AW25: FIELD_solid | BB25: FIELD TOTAL | BD25: OTHERS | BF25: EE N-NH3 TOTAL | BG25: EE N-N2O | BH25: EE N-N2 | BI25: EE N-NOx | BJ25: EE N-TOTAL | BK25: EE-NH3
D26: Nex_T / AA | E26: Nex_Urine | F26: Nex_T | G26: x_TAN-T | H26: TAN-T | I26: x_GRAZ | J26: x_YARD | K26: x_BUILD | L26: N_GRAZ | M26: TAN_GRAZ | N26: EE_GRAZ | O26: N_ret_GRAZ | P26: TAN_GRAZING_solid | Q26: CHECK-1 | R26: N_YARD_solid | S26: TAN_YARD_solid | T26: EE_YARD_solid | U26: N_ret_YARD | V26: TAN_YARD_solid | W26: CHECK-2 | X26: N_BUILD_solid | Y26: TAN_BUILD_solid | Z26: CHECK-3 | AA26: EE_BUILD_solid | AB26: N_STRAW | AC26: N_exBUILD_solid | AD26: TAN_exBUILD_solid | AE26: CHECK-4 | AF26: x_exBUILD_solid-to-STORE_solid | AG26: x_exBUILD_solid-to-FIELD_solid | AH26: x_exBUILD_solid-to-OTHER | AI26: x_YARD-to-STORE_solid | AJ26: x_YARD-to-FIELD_solid | AK26: x_YARD-to-OTHERS | AL26: N_STORE_solid | AM26: TAN_STORE_solid | AN26: EE_NH3_STORE_solid | AO26: EE_N2O_STORE_solid | AP26: EE_N2_STORE_solid | AQ26: EE_NOx_STORE_solid | AR26: N_ex_STORE_solid | AS26: TAN_ex_STORE_solid | AT26: CHECK-5 | AU26: x_STORE_solid-to-FIELD_solid | AV26: x_STORE_slurry-to-OTHERS | AW26: N_FIELD_solid | AX26: TAN_FIELD_solid | AY26: EE_FIELD_solid | AZ26: N_ex_FIELD_solid | BA26: TAN_ex_FIELD_solid | BB26: N_ex_SFIELD_total | BC26: TAN_ex_FIELD_total | BD26: N_OTHERS_solid | BE26: TAN_total | BF26: (PM=17) | BG26: (PM=44,03) | BH26: (PM=28,01) | BI26: (PM=30,01) | BJ26: kg N | BK26: kg NH3 | BL26: CHECK
C27: nº plazas | D27: kg N/AA | E27: kg N-NH3/AA | F27: kg N | G27: kg N-TAN/AA | H27: kg N-TAN | L27: Kg N | M27: Kg N-NH3 | N27: kg N-NH3 | O27: Kg N | P27: kg N-NH3 | R27: Kg N | S27: Kg N-NH3 | T27: kg N-NH3 | U27: Kg N | V27: kg N-NH3 | X27: Kg N | Y27: kg N-NH3 | AA27: kg N-NH3 | AB27: kg N / AA | AC27: N_ret_BUILD_solid | AD27: TAN_ret_BUILD_solid | AN27: kg N-NH3 | AO27: kg N2O | AP27: kg N2 | AQ27: kg NOx | AR27: N_ret_STORE_solid | AS27: TAN_ret_STORE_solid | AW27: kg N | AX27: kg | AY27: kg N-NH3 | AZ27: N_ret_FIELD_solid | BA27: TAN_ret_FIELD_solid | BB27: N_ret_FIELD_total | BC27: TAN_ret_FIELD_total | BD27: kg N | BE27: kg | BF27: kg N | BG27: kg N | BH27: kg N | BI27: kg N
A28: AVES PUESTA | B28: Pollitas blancas en jaula | C28: =E.Datos!$E$25 -> 0 | D28: 0.283 | E28: 0.228 | F28: =C28*D28 -> 0 | G28: =E28/D28 -> 0.8056537102 | H28: =F28*G28 -> 0 | I28: ='F.Dist.'!$E$4 -> 0 | J28: ='F.Dist.'!$F$4 -> 0 | K28: ='F.Dist.'!$G$4 -> 1 | L28: =F28*I28 -> 0 | M28: =H28*I28 -> 0 | N28: =M28*'F.EE.'!C3 -> 0 | O28: =L28-N28 -> 0 | P28: =M28-N28 -> 0 | Q28: =(I28*H28)-(N28+P28) -> 0 | R28: =F28*J28 -> 0 | S28: =H28*J28 -> 0 | T28: =S28*'F.EE.'!F3 -> 0 | U28: =R28-T28 -> 0 | V28: =S28-T28 -> 0 | W28: =U28+T28+O28+N28-(F28*I28+F28*J28) -> 0 | X28: =F28*K28 -> 0 | Y28: =H28*K28 -> 0 | Z28: =(Y28)-H28*K28 -> 0 | AA28: =Y28*'F.EE.'!I3 -> 0 | AB28: ='F.Dist.'!$J$4 -> 0 | AC28: =(C28*AB28*K28)+X28-AA28 -> 0 | AD28: =(Y28-AA28)*(1-0.0067) -> 0 | AE28: =(AC28+U28+O28)+(N28+T28+AA28)-(F28+AB28*C28*K28) -> 0 | AF28: ='F.Dist.'!K4 -> 1 | AG28: ='F.Dist.'!L4 -> 0 | AH28: ='F.Dist.'!M4 -> 0 | AI28: ='F.Dist.'!O4 -> 0 | AJ28: ='F.Dist.'!P4 -> 0 | AK28: ='F.Dist.'!Q4 -> 0 | AL28: =AC28*AF28+U28*AI28 -> 0 | AM28: =AD28*AF28+V28*AI28 -> 0 | AN28: =AM28*'F.EE.'!L3 -> 0 | AO28: =AM28*'F.EE.'!S3 -> 0 | AP28: =AM28*'F.EE.'!T3 -> 0 | AQ28: =AM28*'F.EE.'!U3 -> 0 | AR28: =AL28-AN28-AO28*(28/44)-AP28-AQ28*(14/46) -> 0 | AS28: =AM28-AN28-AO28*(28/44)-AP28-AQ28*(14/46) -> 0 | AT28: =(AR28+AN28+AP28+AO28*28/44+AQ28*14/46)-AL28 -> 0 | AU28: ='F.Dist.'!S4 -> 1 | AV28: ='F.Dist.'!T4 -> 0 | AW28: =AR28*AU28+AC28*AG28+U28*AJ28 -> 0 | AX28: =AS28*AU28+AD28*AG28+V28*AJ28 -> 0 | AY28: =AX28*'F.EE.'!O3 -> 0 | AZ28: =AW28-AY28 -> 0 | BA28: =AX28-AY28 -> 0 | BB28: =AZ28+O28 -> 0 | BC28: =BA28+P28 -> 0 | BD28: =U28*AK28+AR28*AV28+AC28*AH28 -> 0 | BE28: =V28*AK28+AS28*AV28+AD28*AH28 -> 0 | BF28: =AY28+AN28+AA28+T28+N28 -> 0 | BG28: =AO28*28/44 -> 0 | BH28: =AP28 -> 0 | BI28: =AQ28*14/46 -> 0 | BJ28: =SUM(BF28:BI28) -> 0 | BK28: =BF28*17/14 -> 0 | BL28: =F28+(AB28*C28*K28)-(BB28+BD28+BJ28) -> 0
A29: AVES PUESTA | B29: Gallinas blancas en jaula - 1er ciclo | C29: =E.Datos!$E$27 -> 0 | D29: 0.573 | E29: 0.44 | F29: 0 | G29: =E29/D29 -> 0.7678883072 | H29: =F29*G29 -> 0 | I29: ='F.Dist.'!$E$5 -> 0 | J29: ='F.Dist.'!$F$5 -> 0 | K29: ='F.Dist.'!$G$5 -> 1 | L29: =F29*I29 -> 0 | M29: =H29*I29 -> 0 | N29: =M29*'F.EE.'!C4 -> 0 | O29: =L29-N29 -> 0 | P29: =M29-N29 -> 0 | Q29: =(I29*H29)-(N29+P29) -> 0 | R29: =F29*J29 -> 0 | S29: =H29*J29 -> 0 | T29: =S29*'F.EE.'!F4 -> 0 | U29: =R29-T29 -> 0 | V29: =S29-T29 -> 0 | W29: =U29+T29+O29+N29-(F29*I29+F29*J29) -> 0 | X29: =F29*K29 -> 0 | Y29: =H29*K29 -> 0 | Z29: =(Y29)-H29*K29 -> 0 | AA29: =Y29*'F.EE.'!I4 -> 0 | AB29: ='F.Dist.'!$J$5 -> 0 | AC29: =(C29*AB29*K29)+X29-AA29 -> 0 | AD29: =(Y29-AA29)*(1-0.0067) -> 0 | AE29: 0 | AF29: ='F.Dist.'!K5 -> 1 | AG29: ='F.Dist.'!L5 -> 0 | AH29: ='F.Dist.'!M5 -> 0 | AI29: ='F.Dist.'!O5 -> 0 | AJ29: ='F.Dist.'!P5 -> 0 | AK29: ='F.Dist.'!Q5 -> 0 | AL29: =AC29*AF29+U29*AI29 -> 0 | AM29: =AD29*AF29+V29*AI29 -> 0 | AN29: =AM29*'F.EE.'!L4 -> 0 | AO29: =AM29*'F.EE.'!S4 -> 0 | AP29: =AM29*'F.EE.'!T4 -> 0 | AQ29: =AM29*'F.EE.'!U4 -> 0 | AR29: =AL29-AN29-AO29*(28/44)-AP29-AQ29*(14/46) -> 0 | AS29: =AM29-AN29-AO29*(28/44)-AP29-AQ29*(14/46) -> 0 | AT29: =(AR29+AN29+AP29+AO29*28/44+AQ29*14/46)-AL29 -> 0 | AU29: ='F.Dist.'!S5 -> 1 | AV29: ='F.Dist.'!T5 -> 0 | AW29: =AR29*AU29+AC29*AG29+U29*AJ29 -> 0 | AX29: =AS29*AU29+AD29*AG29+V29*AJ29 -> 0 | AY29: =AX29*'F.EE.'!O4 -> 0 | AZ29: =AW29-AY29 -> 0 | BA29: =AX29-AY29 -> 0 | BB29: =AZ29+O29 -> 0 | BC29: =BA29+P29 -> 0 | BD29: =U29*AK29+AR29*AV29+AC29*AH29 -> 0 | BE29: =V29*AK29+AS29*AV29+AD29*AH29 -> 0 | BF29: =AY29+AN29+AA29+T29+N29 -> 0 | BG29: =AO29*28/44 -> 0 | BH29: =AP29 -> 0 | BI29: =AQ29*14/46 -> 0 | BJ29: =SUM(BF29:BI29) -> 0 | BK29: =BF29*17/14 -> 0 | BL29: 0
A30: AVES PUESTA | B30: Gallinas blancas en jaula - 1er ciclo (muda) | C30: =E.Datos!$E$29 -> 0 | D30: 0.57 | E30: 0.431 | F30: 0 | G30: 0.7561403509 | H30: 0 | I30: ='F.Dist.'!E70 -> 0 | J30: ='F.Dist.'!$F$6 -> 0 | K30: ='F.Dist.'!$G$6 -> 1 | L30: 0 | M30: 0 | N30: =M30*'F.EE.'!C5 -> 0 | O30: 0 | P30: 0 | Q30: 0 | R30: 0 | S30: 0 | T30: =S30*'F.EE.'!F5 -> 0 | U30: 0 | V30: 0 | W30: 0 | X30: 0 | Y30: 0 | Z30: 0 | AA30: =Y30*'F.EE.'!I5 -> 0 | AB30: ='F.Dist.'!$J$6 -> 0 | AC30: 0 | AD30: 0 | AE30: 0 | AF30: ='F.Dist.'!K6 -> 1 | AG30: ='F.Dist.'!L6 -> 0 | AH30: ='F.Dist.'!M6 -> 0 | AI30: ='F.Dist.'!O6 -> 0 | AJ30: ='F.Dist.'!P6 -> 0 | AK30: ='F.Dist.'!Q6 -> 0 | AL30: 0 | AM30: 0 | AN30: =AM30*'F.EE.'!L5 -> 0 | AO30: =AM30*'F.EE.'!S5 -> 0 | AP30: =AM30*'F.EE.'!T5 -> 0 | AQ30: =AM30*'F.EE.'!U5 -> 0 | AR30: 0 | AS30: 0 | AT30: 0 | AU30: ='F.Dist.'!S6 -> 1 | AV30: ='F.Dist.'!T6 -> 0 | AW30: 0 | AX30: 0 | AY30: =AX30*'F.EE.'!O5 -> 0 | AZ30: 0 | BA30: 0 | BB30: 0 | BC30: 0 | BD30: 0 | BE30: 0 | BF30: 0 | BG30: 0 | BH30: 0 | BI30: 0 | BJ30: 0 | BK30: 0 | BL30: 0
A31: AVES PUESTA | B31: Gallinas blancas en jaula - muda | C31: =E.Datos!$E$31 -> 0 | D31: 0.621 | E31: 0.533 | F31: 0 | G31: 0.8582930757 | H31: 0 | I31: ='F.Dist.'!$E$7 -> 0 | J31: ='F.Dist.'!$F$7 -> 0 | K31: ='F.Dist.'!$G$7 -> 1 | L31: 0 | M31: 0 | N31: =M31*'F.EE.'!C6 -> 0 | O31: 0 | P31: 0 | Q31: 0 | R31: =F31*J31 -> 0 | S31: 0 | T31: =S31*'F.EE.'!F6 -> 0 | U31: 0 | V31: 0 | W31: 0 | X31: 0 | Y31: 0 | Z31: 0 | AA31: =Y31*'F.EE.'!I6 -> 0 | AB31: ='F.Dist.'!$J$7 -> 0 | AC31: 0 | AD31: 0 | AE31: 0 | AF31: ='F.Dist.'!K7 -> 1 | AG31: ='F.Dist.'!L7 -> 0 | AH31: ='F.Dist.'!M7 -> 0 | AI31: ='F.Dist.'!O7 -> 0 | AJ31: ='F.Dist.'!P7 -> 0 | AK31: ='F.Dist.'!Q7 -> 0 | AL31: 0 | AM31: 0 | AN31: =AM31*'F.EE.'!L6 -> 0 | AO31: =AM31*'F.EE.'!S6 -> 0 | AP31: =AM31*'F.EE.'!T6 -> 0 | AQ31: =AM31*'F.EE.'!U6 -> 0 | AR31: 0 | AS31: 0 | AT31: 0 | AU31: ='F.Dist.'!S7 -> 1 | AV31: ='F.Dist.'!T7 -> 0 | AW31: 0 | AX31: 0 | AY31: =AX31*'F.EE.'!O6 -> 0 | AZ31: 0 | BA31: 0 | BB31: 0 | BC31: 0 | BD31: 0 | BE31: 0 | BF31: 0 | BG31: 0 | BH31: 0 | BI31: 0 | BJ31: 0 | BK31: 0 | BL31: 0
A32: AVES PUESTA | B32: Gallinas blancas en jaula - 2º ciclo | C32: =E.Datos!$E$33 -> 0 | D32: 0.602 | E32: 0.462 | F32: 0 | G32: 0.7674418605 | H32: 0 | I32: ='F.Dist.'!$E$8 -> 0 | J32: ='F.Dist.'!$F$8 -> 0 | K32: ='F.Dist.'!$G$8 -> 1 | L32: 0 | M32: 0 | N32: =M32*'F.EE.'!C7 -> 0 | O32: 0 | P32: 0 | Q32: 0 | R32: =F32*J32 -> 0 | S32: 0 | T32: =S32*'F.EE.'!F7 -> 0 | U32: 0 | V32: 0 | W32: 0 | X32: 0 | Y32: 0 | Z32: 0 | AA32: =Y32*'F.EE.'!I7 -> 0 | AB32: ='F.Dist.'!$J$8 -> 0 | AC32: 0 | AD32: 0 | AE32: 0 | AF32: ='F.Dist.'!K8 -> 1 | AG32: ='F.Dist.'!L8 -> 0 | AH32: ='F.Dist.'!M8 -> 0 | AI32: ='F.Dist.'!O8 -> 0 | AJ32: ='F.Dist.'!P8 -> 0 | AK32: ='F.Dist.'!Q8 -> 0 | AL32: 0 | AM32: 0 | AN32: =AM32*'F.EE.'!L7 -> 0 | AO32: =AM32*'F.EE.'!S7 -> 0 | AP32: =AM32*'F.EE.'!T7 -> 0 | AQ32: =AM32*'F.EE.'!U7 -> 0 | AR32: 0 | AS32: 0 | AT32: 0 | AU32: ='F.Dist.'!S8 -> 1 | AV32: ='F.Dist.'!T8 -> 0 | AW32: 0 | AX32: 0 | AY32: =AX32*'F.EE.'!O7 -> 0 | AZ32: 0 | BA32: 0 | BB32: 0 | BC32: 0 | BD32: 0 | BE32: 0 | BF32: =AY32+AN32+AA32+T32+N32 -> 0 | BG32: 0 | BH32: 0 | BI32: 0 | BJ32: 0 | BK32: 0 | BL32: 0
A33: AVES PUESTA | B33: Pollitas rubias en jaula | C33: =E.Datos!$E$35 -> 0 | D33: 0.31 | E33: 0.249 | F33: 0 | G33: 0.8032258065 | H33: 0 | I33: ='F.Dist.'!$E$9 -> 0 | J33: ='F.Dist.'!$F$9 -> 0 | K33: ='F.Dist.'!$G$9 -> 1 | L33: 0 | M33: 0 | N33: =M33*'F.EE.'!C8 -> 0 | O33: 0 | P33: 0 | Q33: 0 | R33: 0 | S33: 0 | T33: =S33*'F.EE.'!F8 -> 0 | U33: 0 | V33: 0 | W33: 0 | X33: 0 | Y33: 0 | Z33: 0 | AA33: =Y33*'F.EE.'!I8 -> 0 | AB33: ='F.Dist.'!$J$9 -> 0 | AC33: 0 | AD33: 0 | AE33: 0 | AF33: ='F.Dist.'!K9 -> 1 | AG33: ='F.Dist.'!L9 -> 0 | AH33: ='F.Dist.'!M9 -> 0 | AI33: ='F.Dist.'!O9 -> 0 | AJ33: ='F.Dist.'!P9 -> 0 | AK33: ='F.Dist.'!Q9 -> 0 | AL33: 0 | AM33: 0 | AN33: =AM33*'F.EE.'!L8 -> 0 | AO33: =AM33*'F.EE.'!S8 -> 0 | AP33: =AM33*'F.EE.'!T8 -> 0 | AQ33: =AM33*'F.EE.'!U8 -> 0 | AR33: 0 | AS33: 0 | AT33: 0 | AU33: ='F.Dist.'!S9 -> 1 | AV33: ='F.Dist.'!T9 -> 0 | AW33: 0 | AX33: 0 | AY33: =AX33*'F.EE.'!O8 -> 0 | AZ33: 0 | BA33: 0 | BB33: 0 | BC33: 0 | BD33: 0 | BE33: 0 | BF33: =AY33+AN33+AA33+T33+N33 -> 0 | BG33: 0 | BH33: 0 | BI33: 0 | BJ33: 0 | BK33: 0 | BL33: 0
A34: AVES PUESTA | B34: Gallinas rubias en jaula - 1er ciclo | C34: =E.Datos!$E$37 -> 0 | D34: 0.641 | E34: 0.494 | F34: 0 | G34: 0.7706708268 | H34: 0 | I34: ='F.Dist.'!$E$10 -> 0 | J34: ='F.Dist.'!$F$10 -> 0 | K34: ='F.Dist.'!$G$10 -> 1 | L34: 0 | M34: 0 | N34: =M34*'F.EE.'!C9 -> 0 | O34: 0 | P34: 0 | Q34: 0 | R34: 0 | S34: 0 | T34: =S34*'F.EE.'!F9 -> 0 | U34: 0 | V34: 0 | W34: 0 | X34: 0 | Y34: 0 | Z34: 0 | AA34: =Y34*'F.EE.'!I9 -> 0 | AB34: ='F.Dist.'!$J$10 -> 0 | AC34: 0 | AD34: 0 | AE34: 0 | AF34: ='F.Dist.'!K10 -> 1 | AG34: ='F.Dist.'!L10 -> 0 | AH34: ='F.Dist.'!M10 -> 0 | AI34: ='F.Dist.'!O10 -> 0 | AJ34: ='F.Dist.'!P10 -> 0 | AK34: ='F.Dist.'!Q10 -> 0 | AL34: 0 | AM34: 0 | AN34: =AM34*'F.EE.'!L9 -> 0 | AO34: =AM34*'F.EE.'!S9 -> 0 | AP34: =AM34*'F.EE.'!T9 -> 0 | AQ34: =AM34*'F.EE.'!U9 -> 0 | AR34: 0 | AS34: 0 | AT34: 0 | AU34: ='F.Dist.'!S10 -> 1 | AV34: ='F.Dist.'!T10 -> 0 | AW34: 0 | AX34: 0 | AY34: =AX34*'F.EE.'!O9 -> 0 | AZ34: 0 | BA34: 0 | BB34: 0 | BC34: 0 | BD34: 0 | BE34: 0 | BF34: 0 | BG34: 0 | BH34: 0 | BI34: 0 | BJ34: 0 | BK34: 0 | BL34: 0
A35: AVES PUESTA | B35: Gallinas rubias en jaula - 1er ciclo (muda) | C35: =E.Datos!$E$39 -> 0 | D35: 0.615 | E35: 0.47 | F35: 0 | G35: =E35/D35 -> 0.7642276423 | H35: 0 | I35: ='F.Dist.'!$E$11 -> 0 | J35: ='F.Dist.'!$F$11 -> 0 | K35: ='F.Dist.'!$G$11 -> 1 | L35: 0 | M35: 0 | N35: =M35*'F.EE.'!C10 -> 0 | O35: 0 | P35: 0 | Q35: 0 | R35: 0 | S35: 0 | T35: =S35*'F.EE.'!F10 -> 0 | U35: 0 | V35: 0 | W35: 0 | X35: 0 | Y35: 0 | Z35: 0 | AA35: =Y35*'F.EE.'!I10 -> 0 | AB35: ='F.Dist.'!$J$11 -> 0 | AC35: 0 | AD35: 0 | AE35: 0 | AF35: ='F.Dist.'!K11 -> 1 | AG35: ='F.Dist.'!L11 -> 0 | AH35: ='F.Dist.'!M11 -> 0 | AI35: ='F.Dist.'!O11 -> 0 | AJ35: ='F.Dist.'!P11 -> 0 | AK35: ='F.Dist.'!Q11 -> 0 | AL35: 0 | AM35: 0 | AN35: =AM35*'F.EE.'!L10 -> 0 | AO35: =AM35*'F.EE.'!S10 -> 0 | AP35: =AM35*'F.EE.'!T10 -> 0 | AQ35: =AM35*'F.EE.'!U10 -> 0 | AR35: 0 | AS35: 0 | AT35: 0 | AU35: ='F.Dist.'!S11 -> 1 | AV35: ='F.Dist.'!T11 -> 0 | AW35: 0 | AX35: 0 | AY35: =AX35*'F.EE.'!O10 -> 0 | AZ35: 0 | BA35: 0 | BB35: 0 | BC35: 0 | BD35: 0 | BE35: 0 | BF35: 0 | BG35: 0 | BH35: 0 | BI35: 0 | BJ35: 0 | BK35: 0 | BL35: 0
A36: AVES PUESTA | B36: Gallinas rubias en jaula - muda | C36: =E.Datos!$E$41 -> 0 | D36: 0.663 | E36: 0.568 | F36: 0 | G36: =E36/D36 -> 0.8567119155 | H36: =F36*G36 -> 0 | I36: ='F.Dist.'!$E$12 -> 0 | J36: ='F.Dist.'!$F$12 -> 0 | K36: ='F.Dist.'!$G$12 -> 1 | L36: 0 | M36: 0 | N36: =M36*'F.EE.'!C11 -> 0 | O36: 0 | P36: 0 | Q36: 0 | R36: 0 | S36: 0 | T36: =S36*'F.EE.'!F11 -> 0 | U36: 0 | V36: 0 | W36: 0 | X36: 0 | Y36: 0 | Z36: 0 | AA36: =Y36*'F.EE.'!I11 -> 0 | AB36: ='F.Dist.'!$J$12 -> 0 | AC36: 0 | AD36: 0 | AE36: 0 | AF36: ='F.Dist.'!K12 -> 1 | AG36: ='F.Dist.'!L12 -> 0 | AH36: ='F.Dist.'!M12 -> 0 | AI36: ='F.Dist.'!O12 -> 0 | AJ36: ='F.Dist.'!P12 -> 0 | AK36: ='F.Dist.'!Q12 -> 0 | AL36: 0 | AM36: 0 | AN36: =AM36*'F.EE.'!L11 -> 0 | AO36: =AM36*'F.EE.'!S11 -> 0 | AP36: =AM36*'F.EE.'!T11 -> 0 | AQ36: =AM36*'F.EE.'!U11 -> 0 | AR36: 0 | AS36: 0 | AT36: 0 | AU36: ='F.Dist.'!S12 -> 1 | AV36: ='F.Dist.'!T12 -> 0 | AW36: 0 | AX36: 0 | AY36: =AX36*'F.EE.'!O11 -> 0 | AZ36: 0 | BA36: 0 | BB36: 0 | BC36: 0 | BD36: 0 | BE36: 0 | BF36: 0 | BG36: 0 | BH36: 0 | BI36: 0 | BJ36: 0 | BK36: 0 | BL36: 0
A37: AVES PUESTA | B37: Gallinas rubias en jaula - 2º ciclo | C37: =E.Datos!$E$43 -> 0 | D37: 0.666 | E37: 0.516 | F37: 0 | G37: 0.7747747748 | H37: =F37*G37 -> 0 | I37: ='F.Dist.'!$E$13 -> 0 | J37: ='F.Dist.'!$F$13 -> 0 | K37: ='F.Dist.'!$G$13 -> 1 | L37: 0 | M37: 0 | N37: =M37*'F.EE.'!C12 -> 0 | O37: 0 | P37: 0 | Q37: 0 | R37: 0 | S37: 0 | T37: =S37*'F.EE.'!F12 -> 0 | U37: 0 | V37: 0 | W37: 0 | X37: 0 | Y37: 0 | Z37: 0 | AA37: =Y37*'F.EE.'!I12 -> 0 | AB37: ='F.Dist.'!$J$13 -> 0 | AC37: 0 | AD37: 0 | AE37: 0 | AF37: ='F.Dist.'!K13 -> 1 | AG37: ='F.Dist.'!L13 -> 0 | AH37: ='F.Dist.'!M13 -> 0 | AI37: ='F.Dist.'!O13 -> 0 | AJ37: ='F.Dist.'!P13 -> 0 | AK37: ='F.Dist.'!Q13 -> 0 | AL37: 0 | AM37: 0 | AN37: =AM37*'F.EE.'!L12 -> 0 | AO37: =AM37*'F.EE.'!S12 -> 0 | AP37: =AM37*'F.EE.'!T12 -> 0 | AQ37: =AM37*'F.EE.'!U12 -> 0 | AR37: 0 | AS37: 0 | AT37: 0 | AU37: ='F.Dist.'!S13 -> 1 | AV37: ='F.Dist.'!T13 -> 0 | AW37: 0 | AX37: 0 | AY37: =AX37*'F.EE.'!O12 -> 0 | AZ37: 0 | BA37: 0 | BB37: 0 | BC37: 0 | BD37: 0 | BE37: 0 | BF37: 0 | BG37: 0 | BH37: 0 | BI37: 0 | BJ37: 0 | BK37: 0 | BL37: 0
A38: AVES PUESTA | B38: Pollitas camperas | C38: =E.Datos!$E$45 -> 0 | D38: 0.346 | E38: 0.279 | F38: 0 | G38: 0.8063583815 | H38: 0 | I38: ='F.Dist.'!$E$14 -> 0 | J38: ='F.Dist.'!$F$14 -> 0 | K38: ='F.Dist.'!$G$14 -> 1 | L38: 0 | M38: 0 | N38: =M38*'F.EE.'!C13 -> 0 | O38: 0 | P38: 0 | Q38: 0 | R38: 0 | S38: 0 | T38: =S38*'F.EE.'!F13 -> 0 | U38: 0 | V38: 0 | W38: 0 | X38: 0 | Y38: 0 | Z38: 0 | AA38: =Y38*'F.EE.'!I13 -> 0 | AB38: ='F.Dist.'!$J$14 -> 0 | AC38: 0 | AD38: 0 | AE38: 0 | AF38: ='F.Dist.'!K14 -> 1 | AG38: ='F.Dist.'!L14 -> 0 | AH38: ='F.Dist.'!M14 -> 0 | AI38: ='F.Dist.'!O14 -> 1 | AJ38: ='F.Dist.'!P14 -> 0 | AK38: ='F.Dist.'!Q14 -> 0 | AL38: 0 | AM38: 0 | AN38: =AM38*'F.EE.'!L13 -> 0 | AO38: =AM38*'F.EE.'!S13 -> 0 | AP38: =AM38*'F.EE.'!T13 -> 0 | AQ38: =AM38*'F.EE.'!U13 -> 0 | AR38: 0 | AS38: 0 | AT38: 0 | AU38: ='F.Dist.'!S14 -> 1 | AV38: ='F.Dist.'!T14 -> 0 | AW38: 0 | AX38: 0 | AY38: =AX38*'F.EE.'!O13 -> 0 | AZ38: 0 | BA38: 0 | BB38: 0 | BC38: 0 | BD38: 0 | BE38: 0 | BF38: 0 | BG38: 0 | BH38: 0 | BI38: 0 | BJ38: 0 | BK38: 0 | BL38: 0
A39: AVES PUESTA | B39: Gallinas camperas | C39: =E.Datos!$E$47 -> 0 | D39: 0.643 | E39: 0.495 | F39: 0 | G39: 0.7698289269 | H39: 0 | I39: ='F.Dist.'!$E$15 -> 0 | J39: ='F.Dist.'!$F$15 -> 0 | K39: ='F.Dist.'!$G$15 -> 1 | L39: 0 | M39: 0 | N39: =M39*'F.EE.'!C14 -> 0 | O39: 0 | P39: 0 | Q39: 0 | R39: 0 | S39: 0 | T39: =S39*'F.EE.'!F14 -> 0 | U39: 0 | V39: 0 | W39: 0 | X39: 0 | Y39: 0 | Z39: 0 | AA39: =Y39*'F.EE.'!I14 -> 0 | AB39: ='F.Dist.'!$J$15 -> 0 | AC39: 0 | AD39: 0 | AE39: 0 | AF39: ='F.Dist.'!K15 -> 1 | AG39: ='F.Dist.'!L15 -> 0 | AH39: ='F.Dist.'!M15 -> 0 | AI39: ='F.Dist.'!O15 -> 1 | AJ39: ='F.Dist.'!P15 -> 0 | AK39: ='F.Dist.'!Q15 -> 0 | AL39: 0 | AM39: 0 | AN39: =AM39*'F.EE.'!L14 -> 0 | AO39: =AM39*'F.EE.'!S14 -> 0 | AP39: =AM39*'F.EE.'!T14 -> 0 | AQ39: =AM39*'F.EE.'!U14 -> 0 | AR39: 0 | AS39: 0 | AT39: 0 | AU39: ='F.Dist.'!S15 -> 1 | AV39: ='F.Dist.'!T15 -> 0 | AW39: 0 | AX39: 0 | AY39: =AX39*'F.EE.'!O14 -> 0 | AZ39: 0 | BA39: 0 | BB39: 0 | BC39: 0 | BD39: 0 | BE39: 0 | BF39: 0 | BG39: 0 | BH39: 0 | BI39: 0 | BJ39: 0 | BK39: 0 | BL39: 0
A40: TOTALS | C40: =SUM(C28:C39) -> 0 | F40: =SUM(F28:F39) -> 0 | H40: =SUM(H28:H39) -> 0 | K40: =K39 -> 1 | L40: =SUM(L28:L39) -> 0 | M40: =SUM(M28:M39) -> 0 | N40: =SUM(N28:N39) -> 0 | O40: =SUM(O28:O39) -> 0 | P40: =SUM(P28:P39) -> 0 | R40: =SUM(R28:R39) -> 0 | S40: =SUM(S28:S39) -> 0 | T40: =SUM(T28:T39) -> 0 | U40: =SUM(U28:U39) -> 0 | V40: =SUM(V28:V39) -> 0 | X40: =SUM(X28:X39) -> 0 | Y40: =SUM(Y28:Y39) -> 0 | AA40: =SUM(AA28:AA39) -> 0 | AC40: =SUM(AC28:AC39) -> 0 | AD40: =SUM(AD28:AD39) -> 0 | AL40: =SUM(AL28:AL39) -> 0 | AM40: 0 | AN40: 0 | AO40: 0 | AP40: 0 | AQ40: 0 | AR40: 0 | AS40: 0 | AT40: =SUM(AT28:AT39) -> 0 | AW40: =SUM(AW28:AW39) -> 0 | AX40: 0 | AY40: 0 | AZ40: 0 | BA40: 0 | BB40: 0 | BC40: 0 | BD40: 0 | BE40: 0 | BF40: 0 | BG40: 0 | BH40: 0 | BI40: 0 | BJ40: =SUM(BF40:BI40) -> 0 | BK40: =BF40*17/14 -> 0 | BL40: =SUM(BL28:BL39) -> 0

Sheet F.EE. (hidden)
A1: SPECIE | B1: CAT_AA | C1: GRAZING | F1: YARD_solid | I1: BUILD-solid | L1: STORAGE_solid | O1: APPLIED_ solid | S1: STORAGE_solid
C2: FE_GRAZING EFTIER I | D2: FR_GRAZING | E2: Fec_GRAZING | F2: FE_YARD_solid | G2: FR_YARD_solid | H2: Fec_YARD_solid | I2: FE_BUILD_solid | J2: FR_BUILD_solid | K2: FEc_BUILD_solid | L2: FE_STORAGE_solid | M2: FR_STORAGE_solid | N2: FEc_STORAGE_solid | O2: FE_APPLIED_solid | P2: FR_APPLIED_solid | Q2: FEc_APPLIED_solid | S2: kg N2O | T2: kg N2 | U2: kg NO
A3: AVES PUESTA | B3: Pollitas blancas en jaula | C3: 0.32 | D3: 1 | E3: =C3*D3 -> 0.32 | F3: =I3 -> 0.28 | G3: 1 | H3: =F3*G3 -> 0.28 | I3: 0.28 | J3: =VLOOKUP(E.Datos!J25,'F.EE.'!$B$20:$H$34,7,FALSE) -> 1 | K3: =I3*J3 -> 0.28 | L3: 0.17 | M3: =VLOOKUP(E.Datos!V25,'F.EE.'!$K$20:$O$21,5,FALSE) -> 1 | N3: =L3*M3 -> 0.17 | O3: 0.66 | P3: =VLOOKUP(E.Datos!AB25,'F.EE.'!$K$29:$O$33,5,FALSE) -> 1 | Q3: =O3*P3 -> 0.66 | S3: 0.002 | T3: 0.3 | U3: 0.01
A4: AVES PUESTA | B4: Gallinas blancas en jaula - 1er ciclo | C4: 0.32 | D4: 1 | E4: =C4*D4 -> 0.32 | F4: =I4 -> 0.41 | G4: 1 | H4: =F4*G4 -> 0.41 | I4: 0.41 | J4: =VLOOKUP(E.Datos!J27,'F.EE.'!$B$20:$H$34,7,FALSE) -> 1 | K4: =I4*J4 -> 0.41 | L4: 0.14 | M4: =VLOOKUP(E.Datos!V27,'F.EE.'!$K$20:$O$21,5,FALSE) -> 1 | N4: =L4*M4 -> 0.14 | O4: 0.69 | P4: =VLOOKUP(E.Datos!AB27,'F.EE.'!$K$29:$O$33,5,FALSE) -> 1 | Q4: =O4*P4 -> 0.69 | S4: 0.002 | T4: 0.3 | U4: 0.01
A5: AVES PUESTA | B5: Gallinas blancas en jaula - 1er ciclo (muda) | C5: 0.32 | D5: 1 | E5: 0.32 | F5: 0.41 | G5: 1 | H5: 0.41 | I5: 0.41 | J5: =VLOOKUP(E.Datos!J29,'F.EE.'!$B$20:$H$34,7,FALSE) -> 1 | K5: 0.41 | L5: 0.14 | M5: =VLOOKUP(E.Datos!V29,'F.EE.'!$K$20:$O$21,5,FALSE) -> 1 | N5: 0.14 | O5: 0.69 | P5: =VLOOKUP(E.Datos!AB29,'F.EE.'!$K$29:$O$33,5,FALSE) -> 1 | Q5: 0.69 | S5: 0.002 | T5: 0.3 | U5: 0.01
A6: AVES PUESTA | B6: Gallinas blancas en jaula - muda | C6: 0.32 | D6: 1 | E6: 0.32 | F6: 0.41 | G6: 1 | H6: 0.41 | I6: 0.41 | J6: =VLOOKUP(E.Datos!J31,'F.EE.'!$B$20:$H$34,7,FALSE) -> 1 | K6: 0.41 | L6: 0.14 | M6: =VLOOKUP(E.Datos!V31,'F.EE.'!$K$20:$O$21,5,FALSE) -> 1 | N6: 0.14 | O6: 0.69 | P6: =VLOOKUP(E.Datos!AB31,'F.EE.'!$K$29:$O$33,5,FALSE) -> 1 | Q6: 0.69 | S6: 0.002 | T6: 0.3 | U6: 0.01
A7: AVES PUESTA | B7: Gallinas blancas en jaula - 2º ciclo | C7: 0.32 | D7: 1 | E7: 0.32 | F7: 0.41 | G7: 1 | H7: 0.41 | I7: 0.41 | J7: =VLOOKUP(E.Datos!J33,'F.EE.'!$B$20:$H$34,7,FALSE) -> 1 | K7: 0.41 | L7: 0.14 | M7: =VLOOKUP(E.Datos!V33,'F.EE.'!$K$20:$O$21,5,FALSE) -> 1 | N7: 0.14 | O7: 0.69 | P7: =VLOOKUP(E.Datos!AB33,'F.EE.'!$K$29:$O$33,5,FALSE) -> 1 | Q7: 0.69 | S7: 0.002 | T7: 0.3 | U7: 0.01
A8: AVES PUESTA | B8: Pollitas rubias en jaula | C8: 0.32 | D8: 1 | E8: 0.32 | F8: 0.28 | G8: 1 | H8: 0.28 | I8: 0.28 | J8: =VLOOKUP(E.Datos!J35,'F.EE.'!$B$20:$H$34,7,FALSE) -> 1 | K8: 0.28 | L8: 0.17 | M8: =VLOOKUP(E.Datos!V35,'F.EE.'!$K$20:$O$21,5,FALSE) -> 1 | N8: 0.17 | O8: 0.66 | P8: =VLOOKUP(E.Datos!AB35,'F.EE.'!$K$29:$O$33,5,FALSE) -> 1 | Q8: 0.66 | S8: 0.002 | T8: 0.3 | U8: 0.01
A9: AVES PUESTA | B9: Gallinas rubias en jaula - 1er ciclo | C9: 0.32 | D9: 1 | E9: 0.32 | F9: 0.41 | G9: 1 | H9: 0.41 | I9: 0.41 | J9: =VLOOKUP(E.Datos!J37,'F.EE.'!$B$20:$H$34,7,FALSE) -> 1 | K9: 0.41 | L9: 0.14 | M9: =VLOOKUP(E.Datos!V37,'F.EE.'!$K$20:$O$21,5,FALSE) -> 1 | N9: 0.14 | O9: 0.69 | P9: =VLOOKUP(E.Datos!AB37,'F.EE.'!$K$29:$O$33,5,FALSE) -> 1 | Q9: 0.69 | S9: 0.002 | T9: 0.3 | U9: 0.01
A10: AVES PUESTA | B10: Gallinas rubias en jaula - 1er ciclo (muda) | C10: 0.32 | D10: 1 | E10: 0.32 | F10: 0.41 | G10: 1 | H10: 0.41 | I10: 0.41 | J10: =VLOOKUP(E.Datos!J39,'F.EE.'!$B$20:$H$34,7,FALSE) -> 1 | K10: 0.41 | L10: 0.14 | M10: =VLOOKUP(E.Datos!V39,'F.EE.'!$K$20:$O$21,5,FALSE) -> 1 | N10: 0.14 | O10: 0.69 | P10: =VLOOKUP(E.Datos!AB39,'F.EE.'!$K$29:$O$33,5,FALSE) -> 1 | Q10: 0.69 | S10: 0.002 | T10: 0.3 | U10: 0.01
A11: AVES PUESTA | B11: Gallinas rubias en jaula - muda | C11: 0.32 | D11: 1 | E11: 0.32 | F11: 0.41 | G11: 1 | H11: 0.41 | I11: 0.41 | J11: =VLOOKUP(E.Datos!J41,'F.EE.'!$B$20:$H$34,7,FALSE) -> 1 | K11: 0.41 | L11: 0.14 | M11: =VLOOKUP(E.Datos!V41,'F.EE.'!$K$20:$O$21,5,FALSE) -> 1 | N11: 0.14 | O11: 0.69 | P11: =VLOOKUP(E.Datos!AB41,'F.EE.'!$K$29:$O$33,5,FALSE) -> 1 | Q11: 0.69 | S11: 0.002 | T11: 0.3 | U11: 0.01
A12: AVES PUESTA | B12: Gallinas rubias en jaula - 2º ciclo | C12: 0.32 | D12: 1 | E12: 0.32 | F12: 0.41 | G12: 1 | H12: 0.41 | I12: 0.41 | J12: =VLOOKUP(E.Datos!J43,'F.EE.'!$B$20:$H$34,7,FALSE) -> 1 | K12: =I12*J12 -> 0.41 | L12: 0.14 | M12: =VLOOKUP(E.Datos!V43,'F.EE.'!$K$20:$O$21,5,FALSE) -> 1 | N12: 0.14 | O12: 0.69 | P12: =VLOOKUP(E.Datos!AB43,'F.EE.'!$K$29:$O$33,5,FALSE) -> 1 | Q12: 0.69 | S12: 0.002 | T12: 0.3 | U12: 0.01
A13: AVES PUESTA | B13: Pollitas camperas | C13: 0.32 | D13: 1 | E13: 0.32 | F13: 0.28 | G13: 1 | H13: 0.28 | I13: 0.28 | J13: =VLOOKUP(E.Datos!J45,'F.EE.'!$B$20:$H$34,7,FALSE) -> 1 | K13: 0.28 | L13: 0.17 | M13: =VLOOKUP(E.Datos!V45,'F.EE.'!$K$20:$O$21,5,FALSE) -> 1 | N13: 0.17 | O13: 0.66 | P13: =VLOOKUP(E.Datos!AB45,'F.EE.'!$K$29:$O$33,5,FALSE) -> 1 | Q13: 0.66 | S13: 0.002 | T13: 0.3 | U13: 0.01
A14: AVES PUESTA | B14: Gallinas camperas | C14: 0.32 | D14: 1 | E14: 0.32 | F14: =I14 -> 0.41 | G14: 1 | H14: =F14*G14 -> 0.41 | I14: 0.41 | J14: =VLOOKUP(E.Datos!J47,'F.EE.'!$B$20:$H$34,7,FALSE) -> 1 | K14: =I14*J14 -> 0.41 | L14: 0.14 | M14: =VLOOKUP(E.Datos!V47,'F.EE.'!$K$20:$O$21,5,FALSE) -> 1 | N14: =L14*M14 -> 0.14 | O14: 0.69 | P14: =VLOOKUP(E.Datos!AB47,'F.EE.'!$K$29:$O$33,5,FALSE) -> 1 | Q14: =O14*P14 -> 0.69 | S14: 0.002 | T14: 0.3 | U14: 0.01
A17: NH3 REDUCTIONS AND EMISSION FACTORS ACCORDING TO MANAGEMENT TECHNIQUES | J17: NH3 REDUCTIONS AND EMISSION FACTORS ACCORDING TO MANAGEMENT TECHNIQUES
A19: FASE 1: ALOJAMIENTO DE ANIMALES + EVACUACIÓN Y ALMACENAMIENTO DEL ESTIÉRCOL EN LA GRANJA | G19: Coef. Reducción | H19: F.R. | J19: FASE 2. ALMACENAMIENTO DE PURINES | N19: Coef. Reducción | O19: F.R.
A20: Opción 0 | B20: Jaulas no acondicionadas, SIN SECADO estiércol | G20: 0 | H20: =1-G20 -> 1 | J20: Opción 0 | K20: Almacén abierto, sin cubrir | N20: 0 | O20: =1-N20 -> 1
A21: Opción A | B21: Jaulas no acondicionadas, CON SECADO estiércol | G21: 0.3 | H21: 0.7 | J21: Opción A | K21: Almacén cubierto con materiales rígidos o flexibles | N21: 0.4 | O21: =1-N21 -> 0.6
A22: Opción B | B22: Jaulas no acondicionadas, estiércol evacuado inmediatamente con cinta a almacén cerrado | G22: 0.65 | H22: 0.35
A23: Opción C | B23: Jaulas acondicionadas con cinta y retirada de estiércol 2 veces a la semana | G23: 0.5 | H23: 0.5
A24: Opción D | B24: Jaulas acondicionadas con cinta, SECADO, y retirada de estiércol 2 veces a la semana | G24: 0.85 | H24: 0.15
A25: Opción E | B25: Jaulas acondicionadas con cinta, SECADO y retirada de estiércol más de 2 veces a la semana | G25: 0.9 | H25: 0.1
A26: Opción F | B26: Jaulas con sistemas de depuración de aire | G26: 0.8 | H26: 0.2 | J26: NH3 REDUCTIONS AND EMISSION FACTORS ACCORDING TO MANAGEMENT TECHNIQUES
A27: Opción G | B27: Cría en suelo con yacija profunda | G27: 0 | H27: 1
A28: Opción H | B28: Cría en suelo con ventilación natural y sistema de bebederos sin pérdidas de agua, en suelos con yacija profunda | G28: 0.25 | H28: 0.75 | J28: FASE 3: APLICACIÓN DEL ESTIERCOL AL CAMPO | N28: Coef. Reducción | O28: F.R.
A29: Opción I | B29: Aviarios con perchas y retirada de estiércol en cinta, sin secado | G29: 0.775 | H29: 0.225 | J29: Opción 0 | K29: Esparcido, sin enterrado | N29: 0 | O29: =1-N29 -> 1
A30: Opción J | B30: Aviarios con perchas y retirada de estiércol en cinta, con secado | G30: 0.875 | H30: 0.125 | J30: Opción A | K30: Esparcido y enterrado de forma inmediata | N30: 0.9 | O30: 0.1
A31: Opción K | B31: Cría en suelo con yacija, emparrillado parcial y cintas de evacuación | G31: 0.75 | H31: 0.25 | J31: Opción B | K31: Incorporación al suelo con discos, de forma inmediata | N31: 0.7 | O31: 0.3
A32: Opción L | B32: Cria en suelo, con yacija con secado forzado | G32: 0.5 | H32: 0.5 | J32: Opción C | K32: Enterrado en menos de 4 horas desde el esparcido | N32: 0.55 | O32: 0.45
A33: Opción M | B33: Adición de sulfato de aluminio a la yacija | G33: 0.7 | H33: 0.3 | J33: Opción D | K33: Enterrado en más de 4 horas desde el esparcido | N33: 0.2 | O33: 0.8
A34: Opción N | B34: Cría en suelo con sistemas depuración de aire | G34: 0.8 | H34: 0.2 | N34: 0.3 | O34: 0.7
I36: BUILD-solid
I37: FE_BUILD_solid | J37: FR_BUILD_solid | K37: FEc_BUILD_solid
I38: 0.28 | J38: =VLOOKUP(E.Datos!J25,'F.EE.'!B20:H34,7,FALSE) -> 1 | K38: =I38*J38 -> 0.28
I39: 0.41 | K39: =I39*J39 -> 0
I40: 0.41 | K40: 0
I41: 0.41 | K41: 0
I42: 0.41 | K42: 0
I43: 0.28 | K43: 0
I44: 0.41 | K44: 0
I45: 0.41 | K45: 0
I46: 0.41 | K46: 0
I47: 0.41 | K47: 0
I48: 0.28 | K48: 0
I49: 0.41 | K49: 0

Sheet F.Dist. (hidden)
A1: SPECIE | B1: CAT_AA | C1: x_TAN-T | D1: GROSS PROTEIN | E1: DISTRIBUTION_Excrete | H1: DISTRIBUTION_BUILD | J1: N_Straw | K1: DISTRIBUTION_exBUILD_solid | O1: DISTRIBUTION_YARD_solid | S1: DISTRIBUTION_STORE_solid
D2: SÍ | E2: x_GRAZ | F2: x_YARD | G2: x_BUILD | H2: X_BUILD_solid | I2: X_BUILD_slurry | K2: x_exBUILD_solid-to-STORE_solid | L2: x_exBUILD_solid-to-FIELD_solid | M2: x_exBUILD_solid-to-OTHERS | N2: CHECK | O2: x_YARD-to-STORE_solid | P2: x_YARD-to-FIELD_solid | Q2: x_YARD-to-OTHERS | R2: CHECK | S2: x_STORE_solid-to-FIELD_solid | T2: x_STORE_solid-to-OTHERS
C3: kg N-TAN/AA | D3: NO | J3: kg N / AA
A4: AVES PUESTA | B4: Pollitas blancas en jaula | C4: =Calculos!G4 -> 0.8056537102 | D4: =E.Datos!H25 -> SÍ | E4: 0 | F4: 0 | G4: =1-E4-F4 -> 1 | H4: 1 | I4: =1-H4 -> 0 | J4: =IF(E.Datos!E25=0,0,(E.Datos!L25/E.Datos!E25)*'F.Dist.'!J28) -> 0 | K4: =IF(E.Datos!R25=Guía!I47,1,0) -> 1 | L4: =IF(E.Datos!R25=Guía!I48,1,0) -> 0 | M4: =IF(E.Datos!R25=Guía!I49,1,0) -> 0 | N4: =SUM(K4:M4) -> 1 | O4: =IF(E.Datos!T25=Guía!I47,1,0) -> 0 | P4: =IF(E.Datos!T25=Guía!I48,1,0) -> 0 | Q4: =IF(E.Datos!T25=Guía!I49,1,0) -> 0 | R4: =SUM(O4:Q4) -> 0 | S4: =IF(E.Datos!Z25=Guía!I48,1,0) -> 1 | T4: =IF(E.Datos!Z25=Guía!I49,1,0) -> 0
A5: AVES PUESTA | B5: Gallinas blancas en jaula - 1er ciclo | C5: =Calculos!G5 -> 0.7678883072 | D5: =E.Datos!H27 -> SÍ | E5: 0 | F5: 0 | G5: =1-E5-F5 -> 1 | H5: 1 | I5: 0 | J5: =IF(E.Datos!E27=0,0,(E.Datos!L27/E.Datos!E27)*'F.Dist.'!J28) -> 0 | K5: =IF(E.Datos!R27=Guía!I47,1,0) -> 1 | L5: =IF(E.Datos!R27=Guía!I48,1,0) -> 0 | M5: =IF(E.Datos!R27=Guía!I49,1,0) -> 0 | N5: =SUM(K5:M5) -> 1 | O5: =IF(E.Datos!T27=Guía!I47,1,0) -> 0 | P5: =IF(E.Datos!T27=Guía!I48,1,0) -> 0 | Q5: =IF(E.Datos!T27=Guía!I49,1,0) -> 0 | R5: =SUM(O5:Q5) -> 0 | S5: =IF(E.Datos!Z27=Guía!I48,1,0) -> 1 | T5: =IF(E.Datos!Z27=Guía!I49,1,0) -> 0
A6: AVES PUESTA | B6: Gallinas blancas en jaula - 1er ciclo (muda) | C6: =Calculos!G6 -> 0.7561403509 | D6: =E.Datos!H29 -> SÍ | E6: 0 | F6: 0 | G6: =1-E6-F6 -> 1 | H6: 1 | I6: 0 | J6: =IF(E.Datos!E29=0,0,(E.Datos!L29/E.Datos!E29)*'F.Dist.'!J28) -> 0 | K6: =IF(E.Datos!R29=Guía!I47,1,0) -> 1 | L6: =IF(E.Datos!R29=Guía!I48,1,0) -> 0 | M6: =IF(E.Datos!R29=Guía!I49,1,0) -> 0 | N6: 1 | O6: =IF(E.Datos!T29=Guía!I47,1,0) -> 0 | P6: =IF(E.Datos!T29=Guía!I48,1,0) -> 0 | Q6: =IF(E.Datos!T29=Guía!I49,1,0) -> 0 | R6: 0 | S6: =IF(E.Datos!Z29=Guía!I48,1,0) -> 1 | T6: =IF(E.Datos!Z29=Guía!I49,1,0) -> 0
A7: AVES PUESTA | B7: Gallinas blancas en jaula - muda | C7: =Calculos!G7 -> 0.8582930757 | D7: =E.Datos!H31 -> SÍ | E7: 0 | F7: 0 | G7: 1 | H7: 1 | I7: 0 | J7: =IF(E.Datos!E31=0,0,(E.Datos!L31/E.Datos!E31)*'F.Dist.'!J28) -> 0 | K7: =IF(E.Datos!R31=Guía!I47,1,0) -> 1 | L7: =IF(E.Datos!R31=Guía!I48,1,0) -> 0 | M7: =IF(E.Datos!R31=Guía!I49,1,0) -> 0 | N7: 1 | O7: =IF(E.Datos!T31=Guía!I47,1,0) -> 0 | P7: =IF(E.Datos!T31=Guía!I48,1,0) -> 0 | Q7: =IF(E.Datos!T31=Guía!I49,1,0) -> 0 | R7: 0 | S7: =IF(E.Datos!Z31=Guía!I48,1,0) -> 1 | T7: =IF(E.Datos!Z31=Guía!I49,1,0) -> 0
A8: AVES PUESTA | B8: Gallinas blancas en jaula - 2º ciclo | C8: =Calculos!G8 -> 0.7674418605 | D8: =E.Datos!H33 -> SÍ | E8: 0 | F8: 0 | G8: 1 | H8: 1 | I8: 0 | J8: =IF(E.Datos!E33=0,0,(E.Datos!L33/E.Datos!E33)*'F.Dist.'!J28) -> 0 | K8: =IF(E.Datos!R33=Guía!I47,1,0) -> 1 | L8: =IF(E.Datos!R33=Guía!I48,1,0) -> 0 | M8: =IF(E.Datos!R33=Guía!I49,1,0) -> 0 | N8: 1 | O8: =IF(E.Datos!T33=Guía!I47,1,0) -> 0 | P8: =IF(E.Datos!T33=Guía!I48,1,0) -> 0 | Q8: =IF(E.Datos!T33=Guía!I49,1,0) -> 0 | R8: 0 | S8: =IF(E.Datos!Z33=Guía!I48,1,0) -> 1 | T8: =IF(E.Datos!Z33=Guía!I49,1,0) -> 0
A9: AVES PUESTA | B9: Pollitas rubias en jaula | C9: =Calculos!G9 -> 0.8032258065 | D9: =E.Datos!H35 -> SÍ | E9: 0 | F9: 0 | G9: 1 | H9: 1 | I9: 0 | J9: =IF(E.Datos!E35=0,0,(E.Datos!L35/E.Datos!E35)*'F.Dist.'!J28) -> 0 | K9: =IF(E.Datos!R35=Guía!I47,1,0) -> 1 | L9: =IF(E.Datos!R35=Guía!I48,1,0) -> 0 | M9: =IF(E.Datos!R35=Guía!I49,1,0) -> 0 | N9: 1 | O9: =IF(E.Datos!T35=Guía!I47,1,0) -> 0 | P9: =IF(E.Datos!T35=Guía!I48,1,0) -> 0 | Q9: =IF(E.Datos!T35=Guía!I49,1,0) -> 0 | R9: 0 | S9: =IF(E.Datos!Z35=Guía!I48,1,0) -> 1 | T9: =IF(E.Datos!Z35=Guía!I49,1,0) -> 0
A10: AVES PUESTA | B10: Gallinas rubias en jaula - 1er ciclo | C10: =Calculos!G10 -> 0.7706708268 | D10: =E.Datos!H37 -> SÍ | E10: 0 | F10: 0 | G10: 1 | H10: 1 | I10: 0 | J10: =IF(E.Datos!E37=0,0,(E.Datos!L37/E.Datos!E37)*'F.Dist.'!J28) -> 0 | K10: =IF(E.Datos!R37=Guía!I47,1,0) -> 1 | L10: =IF(E.Datos!R37=Guía!I48,1,0) -> 0 | M10: =IF(E.Datos!R37=Guía!I49,1,0) -> 0 | N10: 1 | O10: =IF(E.Datos!T37=Guía!I47,1,0) -> 0 | P10: =IF(E.Datos!T37=Guía!I48,1,0) -> 0 | Q10: =IF(E.Datos!T37=Guía!I49,1,0) -> 0 | R10: 0 | S10: =IF(E.Datos!Z37=Guía!I48,1,0) -> 1 | T10: =IF(E.Datos!Z37=Guía!I49,1,0) -> 0
A11: AVES PUESTA | B11: Gallinas rubias en jaula - 1er ciclo (muda) | C11: =Calculos!G11 -> 0.7642276423 | D11: =E.Datos!H39 -> SÍ | E11: 0 | F11: 0 | G11: 1 | H11: 1 | I11: 0 | J11: =IF(E.Datos!E39=0,0,(E.Datos!L39/E.Datos!E39)*'F.Dist.'!J28) -> 0 | K11: =IF(E.Datos!R39=Guía!I47,1,0) -> 1 | L11: =IF(E.Datos!R39=Guía!I48,1,0) -> 0 | M11: =IF(E.Datos!R39=Guía!I49,1,0) -> 0 | N11: 1 | O11: =IF(E.Datos!T39=Guía!I47,1,0) -> 0 | P11: =IF(E.Datos!T39=Guía!I48,1,0) -> 0 | Q11: =IF(E.Datos!T39=Guía!I49,1,0) -> 0 | R11: 0 | S11: =IF(E.Datos!Z39=Guía!I48,1,0) -> 1 | T11: =IF(E.Datos!Z39=Guía!I49,1,0) -> 0
A12: AVES PUESTA | B12: Gallinas rubias en jaula - muda | C12: =Calculos!G12 -> 0.8567119155 | D12: =E.Datos!H41 -> SÍ | E12: 0 | F12: 0 | G12: 1 | H12: 1 | I12: 0 | J12: =IF(E.Datos!E41=0,0,(E.Datos!L41/E.Datos!E41)*'F.Dist.'!J28) -> 0 | K12: =IF(E.Datos!R41=Guía!I47,1,0) -> 1 | L12: =IF(E.Datos!R41=Guía!I48,1,0) -> 0 | M12: =IF(E.Datos!R41=Guía!I49,1,0) -> 0 | N12: =SUM(K12:M12) -> 1 | O12: =IF(E.Datos!T41=Guía!I47,1,0) -> 0 | P12: =IF(E.Datos!T41=Guía!I48,1,0) -> 0 | Q12: =IF(E.Datos!T41=Guía!I49,1,0) -> 0 | R12: 0 | S12: =IF(E.Datos!Z41=Guía!I48,1,0) -> 1 | T12: =IF(E.Datos!Z41=Guía!I49,1,0) -> 0
A13: AVES PUESTA | B13: Gallinas rubias en jaula - 2º ciclo | C13: =Calculos!G13 -> 0.7747747748 | D13: =E.Datos!H43 -> SÍ | E13: 0 | F13: 0 | G13: 1 | H13: 1 | I13: 0 | J13: =IF(E.Datos!E43=0,0,(E.Datos!L43/E.Datos!E43)*'F.Dist.'!J28) -> 0 | K13: =IF(E.Datos!R43=Guía!I47,1,0) -> 1 | L13: =IF(E.Datos!R43=Guía!I48,1,0) -> 0 | M13: =IF(E.Datos!R43=Guía!I49,1,0) -> 0 | N13: 1 | O13: =IF(E.Datos!T43=Guía!I47,1,0) -> 0 | P13: =IF(E.Datos!T43=Guía!I48,1,0) -> 0 | Q13: =IF(E.Datos!T43=Guía!I49,1,0) -> 0 | R13: 0 | S13: =IF(E.Datos!Z43=Guía!I48,1,0) -> 1 | T13: =IF(E.Datos!Z43=Guía!I49,1,0) -> 0
A14: AVES PUESTA | B14: Pollitas camperas | C14: =Calculos!G14 -> 0.8063583815 | D14: =E.Datos!H45 -> SÍ | E14: 0 | F14: =IF(E.Datos!N45="SÍ",0.3333,0) -> 0 | G14: =1-E14-F14 -> 1 | H14: 1 | I14: 0 | J14: =IF(E.Datos!E45=0,0,(E.Datos!L45/E.Datos!E45)*'F.Dist.'!J28) -> 0 | K14: =IF(E.Datos!R45=Guía!I47,1,0) -> 1 | L14: =IF(E.Datos!R45=Guía!I48,1,0) -> 0 | M14: =IF(E.Datos!R45=Guía!I49,1,0) -> 0 | N14: 1 | O14: =IF(E.Datos!T45=Guía!I47,1,0) -> 1 | P14: =IF(E.Datos!T45=Guía!I48,1,0) -> 0 | Q14: =IF(E.Datos!T45=Guía!I49,1,0) -> 0 | R14: 1 | S14: =IF(E.Datos!Z45=Guía!I48,1,0) -> 1 | T14: =IF(E.Datos!Z45=Guía!I49,1,0) -> 0
A15: AVES PUESTA | B15: Gallinas camperas | C15: =Calculos!G15 -> 0.7698289269 | D15: =E.Datos!H47 -> SÍ | E15: 0 | F15: =IF(E.Datos!N47="SÍ",0.3333,0) -> 0 | G15: =1-E15-F15 -> 1 | H15: 1 | I15: 0 | J15: =IF(E.Datos!E47=0,0,(E.Datos!L47/E.Datos!E47)*'F.Dist.'!J28) -> 0 | K15: =IF(E.Datos!R47=Guía!I47,1,0) -> 1 | L15: =IF(E.Datos!R47=Guía!I48,1,0) -> 0 | M15: =IF(E.Datos!R47=Guía!I49,1,0) -> 0 | N15: =SUM(K15:M15) -> 1 | O15: =IF(E.Datos!T47=Guía!I47,1,0) -> 1 | P15: =IF(E.Datos!T47=Guía!I48,1,0) -> 0 | Q15: =IF(E.Datos!T47=Guía!I49,1,0) -> 0 | R15: =SUM(O15:Q15) -> 1 | S15: =IF(E.Datos!Z47=Guía!I48,1,0) -> 1 | T15: =IF(E.Datos!Z47=Guía!I49,1,0) -> 0
D19: Datos obtenidos por Com. Pers. MAPAMA: | H19: Min | I19: Max | J19: Media
D20: Densidad (kg pollo/m2) | H20: 33 | I20: 42 | J20: =AVERAGE(33,42) -> 37.5
D21: Densidad (pollo/m2) | H21: =H20/2.3 -> 14.34782609 | I21: =I20/2.3 -> 18.26086957 | J21: =AVERAGE(H21:I21) -> 16.30434783
D22: Superficie (m2/pollo) | H22: =H21^-1 -> 0.0696969697 | I22: =I21^-1 -> 0.05476190476 | J22: =AVERAGE(H22:I22) -> 0.06222943723
D23: Superficie (cm2/pollo) | H23: =H22*10000 -> 696.969697 | I23: =I22*10000 -> 547.6190476 | J23: =AVERAGE(H23:I23) -> 622.2943723
D24: Volumen (cm3/pollo) | H24: =4*H23 -> 2787.878788 | I24: =4*I23 -> 2190.47619 | J24: 2489.177489
D25: Datos de consulta bibliográfica:
D26: Densidad paja cereal (kg/m3) | H26: 125 | I26: 165 | J26: 145
D27: Densidad paja cereal (kg/cm3) | H27: =H26/1000000 -> 0.000125 | I27: =I26/1000000 -> 0.000165 | J27: 0.000145
D28: Contenido N en paja cereal (kg/kg) | H28: =0.3/100 -> 0.003 | I28: =1.1/100 -> 0.011 | J28: 0.007
E30: La Directiva 1999/74/CE establece unos mínimos de
F31: 250 cm2 de yacija por gallina
F32: 550 cm2 de jaula no acondicionada por gallina
F33: 750 cm2 de jaula acondicionada por gallina
